Workbook

Sheet Step 1 - Make Selections
J12: =G19*#REF! -> 
J13: =IF(B24="Not Achieved",0,B24) -> 0
A19: EOP Rebate Calculator | D19: TOTAL EOP PURCHASE | G19: =I75+I91 -> 0
A20: Rebate Program Locked | B20: =IF((F91+F75)>=2000,"October Rebate Locked",IF((I75+I91)>=2000,"Nov-Dec Rebate Locked","Rebate Level Not Achieved")) -> Rebate Level Not Achieved | D20: $ To Reach Rebate Level 1 | G20: =IF(2000-$G$19<=0,"Reached",2000-$G$19) -> 2000
A21: Rebate Level | B21: =IF('Range Reference'!G6=0,0,'Range Reference'!G6) -> 0 | D21: $ To Reach Rebate Level 2 | G21: =IF(7000-$G$19<=0,"Reached",7000-$G$19) -> 7000
D22: $ To Reach Rebate Level 3 | G22: =IF(20000-$G$19<=0,"Reached",20000-$G$19) -> 20000
D23: Rebate $ on Total Purchases | G23: =IF(B21=0,"Not Achieved",B21*G19) -> Not Achieved
A24: Intrinsic Fairway Rebate | B24: =IF('Range Reference'!R3+'Range Reference'!R5=0,"Not Achieved",'Range Reference'!R3+'Range Reference'!R5) -> Not Achieved | D24: Additional Intrinsic/Freehand Rebate | G24: =IF('Range Reference'!R8=0,"Not Achieved",'Range Reference'!R8) -> Not Achieved
A25: Freehand Bulk Rebate | B25: =IF('Range Reference'!R2=0,"Not Achieved",'Range Reference'!R2) -> Not Achieved | D25: TOTAL EOP Rebate | G25: =IF(G24="Not Achieved",G19*B21,(G19*B21)+G24) -> 0
A27: Qualifying Agency Products | B27: Package | C27: Article No. | D27: Agency Price | E27: Oct Order (Cases) | F27: Oct Sales | G27: Nov-Dec Order (Cases) | H27: Nov-Dec Sales | I27: Acres Low | J27: Acres Mid | K27: Acres High
A28: Multi-course Fairway Cube | B28: Cube | C28: 59014559 | D28: 32226 | E28: 0 | F28: =D28*E28 -> 0 | G28: 0 | H28: =G28*D28 -> 0 | I28: =IF(ISNA(VLOOKUP($C28,'Coverage Reference'!$B$4:$G$16,4,FALSE))=TRUE,0,VLOOKUP($C28,'Coverage Reference'!$B$4:$G$16,4,FALSE)*(E28+G28)) -> 0 | J28: =IF(ISNA(VLOOKUP($C28,'Coverage Reference'!$B$4:$G$16,5,FALSE))=TRUE,0,VLOOKUP($C28,'Coverage Reference'!$B$4:$G$16,5,FALSE)*(E28+G28)) -> 0 | K28: =IF(ISNA(VLOOKUP($C28,'Coverage Reference'!$B$4:$G$16,6,FALSE))=TRUE,0,VLOOKUP($C28,'Coverage Reference'!$B$4:$G$16,6,FALSE)*(E28+G28)) -> 0
A29: =VLOOKUP($C29,'Article Reference'!$A$2:$C$45,2,FALSE) -> Xzemplar™ Fungicide | B29: =VLOOKUP($C29,'Article Reference'!$A$2:$C$45,3,FALSE) -> 2x 114 oz | C29: 59013833 | E29: =E28*5 -> 0 | G29: =G28*5 -> 0 | I29: =IF(ISNA(VLOOKUP($C29,'Coverage Reference'!$B$4:$G$16,4,FALSE))=TRUE,0,VLOOKUP($C29,'Coverage Reference'!$B$4:$G$16,4,FALSE)*(E29+G29)) -> 0 | J29: =IF(ISNA(VLOOKUP($C29,'Coverage Reference'!$B$4:$G$16,5,FALSE))=TRUE,0,VLOOKUP($C29,'Coverage Reference'!$B$4:$G$16,5,FALSE)*(E29+G29)) -> 0 | K29: =IF(ISNA(VLOOKUP($C29,'Coverage Reference'!$B$4:$G$16,6,FALSE))=TRUE,0,VLOOKUP($C29,'Coverage Reference'!$B$4:$G$16,6,FALSE)*(E29+G29)) -> 0
A30: =VLOOKUP($C30,'Article Reference'!$A$2:$C$45,2,FALSE) -> Emerald® Fungicide | B30: =VLOOKUP($C30,'Article Reference'!$A$2:$C$45,3,FALSE) -> 50 x 0.49 lb | C30: 59012825 | E30: =E28*1 -> 0 | G30: =G28*1 -> 0
A31: =VLOOKUP($C31,'Article Reference'!$A$2:$C$45,2,FALSE) -> Emerald® Fungicide | B31: =VLOOKUP($C31,'Article Reference'!$A$2:$C$45,3,FALSE) -> 10 x 0.49 lb | C31: 59021463 | E31: =E28*1 -> 0 | G31: =G28*1 -> 0 | I31: =IF(ISNA(VLOOKUP($C31,'Coverage Reference'!$B$4:$G$16,4,FALSE))=TRUE,0,VLOOKUP($C31,'Coverage Reference'!$B$4:$G$16,4,FALSE)*(E31+G31)) -> 0 | J31: =IF(ISNA(VLOOKUP($C31,'Coverage Reference'!$B$4:$G$16,5,FALSE))=TRUE,0,VLOOKUP($C31,'Coverage Reference'!$B$4:$G$16,5,FALSE)*(E31+G31)) -> 0 | K31: =IF(ISNA(VLOOKUP($C31,'Coverage Reference'!$B$4:$G$16,6,FALSE))=TRUE,0,VLOOKUP($C31,'Coverage Reference'!$B$4:$G$16,6,FALSE)*(E31+G31)) -> 0
A32: =VLOOKUP($C32,'Article Reference'!$A$2:$C$45,2,FALSE) -> Honor® Intrinsic™ brand Fungicide | B32: =VLOOKUP($C32,'Article Reference'!$A$2:$C$45,3,FALSE) -> 1 x 36 lb | C32: 59012885 | E32: =E28*3 -> 0 | G32: =G28*3 -> 0 | I32: =IF(ISNA(VLOOKUP($C32,'Coverage Reference'!$B$4:$G$16,4,FALSE))=TRUE,0,VLOOKUP($C32,'Coverage Reference'!$B$4:$G$16,4,FALSE)*(E32+G32)) -> 0 | J32: =IF(ISNA(VLOOKUP($C32,'Coverage Reference'!$B$4:$G$16,5,FALSE))=TRUE,0,VLOOKUP($C32,'Coverage Reference'!$B$4:$G$16,5,FALSE)*(E32+G32)) -> 0 | K32: =IF(ISNA(VLOOKUP($C32,'Coverage Reference'!$B$4:$G$16,6,FALSE))=TRUE,0,VLOOKUP($C32,'Coverage Reference'!$B$4:$G$16,6,FALSE)*(E32+G32)) -> 0
A33: Dollar Spot Foundation Cube | B33: Cube | C33: 59014560 | D33: 13869 | E33: 0 | F33: 0 | G33: 0 | H33: 0 | I33: =IF(ISNA(VLOOKUP($C33,'Coverage Reference'!$B$4:$G$16,4,FALSE))=TRUE,0,VLOOKUP($C33,'Coverage Reference'!$B$4:$G$16,4,FALSE)*(E33+G33)) -> 0 | J33: =IF(ISNA(VLOOKUP($C33,'Coverage Reference'!$B$4:$G$16,5,FALSE))=TRUE,0,VLOOKUP($C33,'Coverage Reference'!$B$4:$G$16,5,FALSE)*(E33+G33)) -> 0 | K33: =IF(ISNA(VLOOKUP($C33,'Coverage Reference'!$B$4:$G$16,6,FALSE))=TRUE,0,VLOOKUP($C33,'Coverage Reference'!$B$4:$G$16,6,FALSE)*(E33+G33)) -> 0
A34: =VLOOKUP($C34,'Article Reference'!$A$2:$C$45,2,FALSE) -> Xzemplar™ Fungicide | B34: =VLOOKUP($C34,'Article Reference'!$A$2:$C$45,3,FALSE) -> 2x 114 oz | C34: 59013833 | E34: =E33*3 -> 0 | G34: =G33*3 -> 0 | I34: =IF(ISNA(VLOOKUP($C34,'Coverage Reference'!$B$4:$G$16,4,FALSE))=TRUE,0,VLOOKUP($C34,'Coverage Reference'!$B$4:$G$16,4,FALSE)*(E34+G34)) -> 0 | J34: =IF(ISNA(VLOOKUP($C34,'Coverage Reference'!$B$4:$G$16,5,FALSE))=TRUE,0,VLOOKUP($C34,'Coverage Reference'!$B$4:$G$16,5,FALSE)*(E34+G34)) -> 0 | K34: =IF(ISNA(VLOOKUP($C34,'Coverage Reference'!$B$4:$G$16,6,FALSE))=TRUE,0,VLOOKUP($C34,'Coverage Reference'!$B$4:$G$16,6,FALSE)*(E34+G34)) -> 0
A35: =VLOOKUP($C35,'Article Reference'!$A$2:$C$45,2,FALSE) -> Emerald® Fungicide | B35: =VLOOKUP($C35,'Article Reference'!$A$2:$C$45,3,FALSE) -> 10 x 0.49 lb | C35: 59021463 | E35: =E33*3 -> 0 | G35: =G33*3 -> 0 | I35: =IF(ISNA(VLOOKUP($C35,'Coverage Reference'!$B$4:$G$16,4,FALSE))=TRUE,0,VLOOKUP($C35,'Coverage Reference'!$B$4:$G$16,4,FALSE)*(E35+G35)) -> 0 | J35: =IF(ISNA(VLOOKUP($C35,'Coverage Reference'!$B$4:$G$16,5,FALSE))=TRUE,0,VLOOKUP($C35,'Coverage Reference'!$B$4:$G$16,5,FALSE)*(E35+G35)) -> 0 | K35: =IF(ISNA(VLOOKUP($C35,'Coverage Reference'!$B$4:$G$16,6,FALSE))=TRUE,0,VLOOKUP($C35,'Coverage Reference'!$B$4:$G$16,6,FALSE)*(E35+G35)) -> 0
A36: New Innovation Cube | B36: Cube | C36: 59014244 | D36: 7441 | E36: 0 | F36: 0 | G36: 0 | H36: 0 | I36: =IF(ISNA(VLOOKUP($C36,'Coverage Reference'!$B$4:$G$16,4,FALSE))=TRUE,0,VLOOKUP($C36,'Coverage Reference'!$B$4:$G$16,4,FALSE)*(E36+G36)) -> 0 | J36: =IF(ISNA(VLOOKUP($C36,'Coverage Reference'!$B$4:$G$16,5,FALSE))=TRUE,0,VLOOKUP($C36,'Coverage Reference'!$B$4:$G$16,5,FALSE)*(E36+G36)) -> 0 | K36: =IF(ISNA(VLOOKUP($C36,'Coverage Reference'!$B$4:$G$16,6,FALSE))=TRUE,0,VLOOKUP($C36,'Coverage Reference'!$B$4:$G$16,6,FALSE)*(E36+G36)) -> 0
A37: =VLOOKUP($C37,'Article Reference'!$A$2:$C$45,2,FALSE) -> Xzemplar™Fungicide | B37: =VLOOKUP($C37,'Article Reference'!$A$2:$C$45,3,FALSE) -> 4 x 11.4 oz | C37: 59014120 | E37: =3*E36 -> 0 | G37: =3*G36 -> 0 | I37: =IF(ISNA(VLOOKUP($C37,'Coverage Reference'!$B$4:$G$16,4,FALSE))=TRUE,0,VLOOKUP($C37,'Coverage Reference'!$B$4:$G$16,4,FALSE)*(E37+G37)) -> 0 | J37: =IF(ISNA(VLOOKUP($C37,'Coverage Reference'!$B$4:$G$16,5,FALSE))=TRUE,0,VLOOKUP($C37,'Coverage Reference'!$B$4:$G$16,5,FALSE)*(E37+G37)) -> 0 | K37: =IF(ISNA(VLOOKUP($C37,'Coverage Reference'!$B$4:$G$16,6,FALSE))=TRUE,0,VLOOKUP($C37,'Coverage Reference'!$B$4:$G$16,6,FALSE)*(E37+G37)) -> 0
A38: =VLOOKUP($C38,'Article Reference'!$A$2:$C$45,2,FALSE) -> Lexicon® Intrinsic™ Brand Fungicide | B38: =VLOOKUP($C38,'Article Reference'!$A$2:$C$45,3,FALSE) -> 4x 21 oz | C38: 59013840 | E38: =3*E36 -> 0 | G38: =3*G36 -> 0 | I38: =IF(ISNA(VLOOKUP($C38,'Coverage Reference'!$B$4:$G$16,4,FALSE))=TRUE,0,VLOOKUP($C38,'Coverage Reference'!$B$4:$G$16,4,FALSE)*(E38+G38)) -> 0 | J38: =IF(ISNA(VLOOKUP($C38,'Coverage Reference'!$B$4:$G$16,5,FALSE))=TRUE,0,VLOOKUP($C38,'Coverage Reference'!$B$4:$G$16,5,FALSE)*(E38+G38)) -> 0 | K38: =IF(ISNA(VLOOKUP($C38,'Coverage Reference'!$B$4:$G$16,6,FALSE))=TRUE,0,VLOOKUP($C38,'Coverage Reference'!$B$4:$G$16,6,FALSE)*(E38+G38)) -> 0
A39: Fairway Building Block Cube | B39: Cube | C39: 59014398 | D39: 6036 | E39: 0 | F39: 0 | G39: 0 | H39: 0 | I39: =IF(ISNA(VLOOKUP($C39,'Coverage Reference'!$B$4:$G$16,4,FALSE))=TRUE,0,VLOOKUP($C39,'Coverage Reference'!$B$4:$G$16,4,FALSE)*(E39+G39)) -> 0 | J39: =IF(ISNA(VLOOKUP($C39,'Coverage Reference'!$B$4:$G$16,5,FALSE))=TRUE,0,VLOOKUP($C39,'Coverage Reference'!$B$4:$G$16,5,FALSE)*(E39+G39)) -> 0 | K39: =IF(ISNA(VLOOKUP($C39,'Coverage Reference'!$B$4:$G$16,6,FALSE))=TRUE,0,VLOOKUP($C39,'Coverage Reference'!$B$4:$G$16,6,FALSE)*(E39+G39)) -> 0
A40: =VLOOKUP($C40,'Article Reference'!$A$2:$C$45,2,FALSE) -> Xzemplar™ Fungicide | B40: =VLOOKUP($C40,'Article Reference'!$A$2:$C$45,3,FALSE) -> 2x 114 oz | C40: 59013833 | E40: =1*E39 -> 0 | G40: =1*G39 -> 0 | I40: =IF(ISNA(VLOOKUP($C40,'Coverage Reference'!$B$4:$G$16,4,FALSE))=TRUE,0,VLOOKUP($C40,'Coverage Reference'!$B$4:$G$16,4,FALSE)*(E40+G40)) -> 0 | J40: =IF(ISNA(VLOOKUP($C40,'Coverage Reference'!$B$4:$G$16,5,FALSE))=TRUE,0,VLOOKUP($C40,'Coverage Reference'!$B$4:$G$16,5,FALSE)*(E40+G40)) -> 0 | K40: =IF(ISNA(VLOOKUP($C40,'Coverage Reference'!$B$4:$G$16,6,FALSE))=TRUE,0,VLOOKUP($C40,'Coverage Reference'!$B$4:$G$16,6,FALSE)*(E40+G40)) -> 0
A41: =VLOOKUP($C41,'Article Reference'!$A$2:$C$45,2,FALSE) -> Emerald® Fungicide | B41: =VLOOKUP($C41,'Article Reference'!$A$2:$C$45,3,FALSE) -> 10 x 0.49 lb | C41: 59021463 | E41: =2*E39 -> 0 | G41: =2*G39 -> 0 | I41: =IF(ISNA(VLOOKUP($C41,'Coverage Reference'!$B$4:$G$16,4,FALSE))=TRUE,0,VLOOKUP($C41,'Coverage Reference'!$B$4:$G$16,4,FALSE)*(E41+G41)) -> 0 | J41: =IF(ISNA(VLOOKUP($C41,'Coverage Reference'!$B$4:$G$16,5,FALSE))=TRUE,0,VLOOKUP($C41,'Coverage Reference'!$B$4:$G$16,5,FALSE)*(E41+G41)) -> 0 | K41: =IF(ISNA(VLOOKUP($C41,'Coverage Reference'!$B$4:$G$16,6,FALSE))=TRUE,0,VLOOKUP($C41,'Coverage Reference'!$B$4:$G$16,6,FALSE)*(E41+G41)) -> 0
A42: More Resilience II Cube | B42: Cube | C42: 59014397 | D42: 30284 | E42: 0 | F42: 0 | G42: 0 | H42: 0 | I42: =IF(ISNA(VLOOKUP($C42,'Coverage Reference'!$B$4:$G$16,4,FALSE))=TRUE,0,VLOOKUP($C42,'Coverage Reference'!$B$4:$G$16,4,FALSE)*(E42+G42)) -> 0 | J42: =IF(ISNA(VLOOKUP($C42,'Coverage Reference'!$B$4:$G$16,5,FALSE))=TRUE,0,VLOOKUP($C42,'Coverage Reference'!$B$4:$G$16,5,FALSE)*(E42+G42)) -> 0 | K42: =IF(ISNA(VLOOKUP($C42,'Coverage Reference'!$B$4:$G$16,6,FALSE))=TRUE,0,VLOOKUP($C42,'Coverage Reference'!$B$4:$G$16,6,FALSE)*(E42+G42)) -> 0
A43: =VLOOKUP($C43,'Article Reference'!$A$2:$C$45,2,FALSE) -> Xzemplar™ Fungicide | B43: =VLOOKUP($C43,'Article Reference'!$A$2:$C$45,3,FALSE) -> 2x 114 oz | C43: 59013833 | E43: =2*E42 -> 0 | G43: =2*G42 -> 0 | I43: =IF(ISNA(VLOOKUP($C43,'Coverage Reference'!$B$4:$G$16,4,FALSE))=TRUE,0,VLOOKUP($C43,'Coverage Reference'!$B$4:$G$16,4,FALSE)*(E43+G43)) -> 0 | J43: =IF(ISNA(VLOOKUP($C43,'Coverage Reference'!$B$4:$G$16,5,FALSE))=TRUE,0,VLOOKUP($C43,'Coverage Reference'!$B$4:$G$16,5,FALSE)*(E43+G43)) -> 0 | K43: =IF(ISNA(VLOOKUP($C43,'Coverage Reference'!$B$4:$G$16,6,FALSE))=TRUE,0,VLOOKUP($C43,'Coverage Reference'!$B$4:$G$16,6,FALSE)*(E43+G43)) -> 0
A44: =VLOOKUP($C44,'Article Reference'!$A$2:$C$45,2,FALSE) -> Emerald® Fungicide | B44: =VLOOKUP($C44,'Article Reference'!$A$2:$C$45,3,FALSE) -> 50 x 0.49 lb | C44: 59012825 | E44: =1*E42 -> 0 | G44: =1*G42 -> 0 | I44: =IF(ISNA(VLOOKUP($C44,'Coverage Reference'!$B$4:$G$16,4,FALSE))=TRUE,0,VLOOKUP($C44,'Coverage Reference'!$B$4:$G$16,4,FALSE)*(E44+G44)) -> 0 | J44: =IF(ISNA(VLOOKUP($C44,'Coverage Reference'!$B$4:$G$16,5,FALSE))=TRUE,0,VLOOKUP($C44,'Coverage Reference'!$B$4:$G$16,5,FALSE)*(E44+G44)) -> 0 | K44: =IF(ISNA(VLOOKUP($C44,'Coverage Reference'!$B$4:$G$16,6,FALSE))=TRUE,0,VLOOKUP($C44,'Coverage Reference'!$B$4:$G$16,6,FALSE)*(E44+G44)) -> 0
A45: =VLOOKUP($C45,'Article Reference'!$A$2:$C$45,2,FALSE) -> Trinity fungicide | B45: =VLOOKUP($C45,'Article Reference'!$A$2:$C$45,3,FALSE) -> 2.5 gal. | C45: 59011038 | E45: =2*E42 -> 0 | G45: =2*G42 -> 0 | I45: =IF(ISNA(VLOOKUP($C45,'Coverage Reference'!$B$4:$G$16,4,FALSE))=TRUE,0,VLOOKUP($C45,'Coverage Reference'!$B$4:$G$16,4,FALSE)*(E45+G45)) -> 0 | J45: =IF(ISNA(VLOOKUP($C45,'Coverage Reference'!$B$4:$G$16,5,FALSE))=TRUE,0,VLOOKUP($C45,'Coverage Reference'!$B$4:$G$16,5,FALSE)*(E45+G45)) -> 0 | K45: =IF(ISNA(VLOOKUP($C45,'Coverage Reference'!$B$4:$G$16,6,FALSE))=TRUE,0,VLOOKUP($C45,'Coverage Reference'!$B$4:$G$16,6,FALSE)*(E45+G45)) -> 0
A46: =VLOOKUP($C46,'Article Reference'!$A$2:$C$45,2,FALSE) -> Honor® Intrinsic™ brand Fungicide | B46: =VLOOKUP($C46,'Article Reference'!$A$2:$C$45,3,FALSE) -> 1 x 36 lb | C46: 59012885 | E46: =3*E42 -> 0 | G46: =3*G42 -> 0 | I46: =IF(ISNA(VLOOKUP($C46,'Coverage Reference'!$B$4:$G$16,4,FALSE))=TRUE,0,VLOOKUP($C46,'Coverage Reference'!$B$4:$G$16,4,FALSE)*(E46+G46)) -> 0 | J46: =IF(ISNA(VLOOKUP($C46,'Coverage Reference'!$B$4:$G$16,5,FALSE))=TRUE,0,VLOOKUP($C46,'Coverage Reference'!$B$4:$G$16,5,FALSE)*(E46+G46)) -> 0 | K46: =IF(ISNA(VLOOKUP($C46,'Coverage Reference'!$B$4:$G$16,6,FALSE))=TRUE,0,VLOOKUP($C46,'Coverage Reference'!$B$4:$G$16,6,FALSE)*(E46+G46)) -> 0
A47: =VLOOKUP($C47,'Article Reference'!$A$2:$C$45,2,FALSE) -> Lexicon® Intrinsic™ Brand Fungicide | B47: =VLOOKUP($C47,'Article Reference'!$A$2:$C$45,3,FALSE) -> 4x 21 oz | C47: 59013840 | E47: =3*E42 -> 0 | G47: =3*G42 -> 0 | I47: =IF(ISNA(VLOOKUP($C47,'Coverage Reference'!$B$4:$G$16,4,FALSE))=TRUE,0,VLOOKUP($C47,'Coverage Reference'!$B$4:$G$16,4,FALSE)*(E47+G47)) -> 0 | J47: =IF(ISNA(VLOOKUP($C47,'Coverage Reference'!$B$4:$G$16,5,FALSE))=TRUE,0,VLOOKUP($C47,'Coverage Reference'!$B$4:$G$16,5,FALSE)*(E47+G47)) -> 0 | K47: =IF(ISNA(VLOOKUP($C47,'Coverage Reference'!$B$4:$G$16,6,FALSE))=TRUE,0,VLOOKUP($C47,'Coverage Reference'!$B$4:$G$16,6,FALSE)*(E47+G47)) -> 0
A48: Plant Health Cube | B48: Cube | C48: 59014232 | D48: 8727 | E48: 0 | F48: 0 | G48: 0 | H48: 0 | I48: =IF(ISNA(VLOOKUP($C48,'Coverage Reference'!$B$4:$G$16,4,FALSE))=TRUE,0,VLOOKUP($C48,'Coverage Reference'!$B$4:$G$16,4,FALSE)*(E48+G48)) -> 0 | J48: =IF(ISNA(VLOOKUP($C48,'Coverage Reference'!$B$4:$G$16,5,FALSE))=TRUE,0,VLOOKUP($C48,'Coverage Reference'!$B$4:$G$16,5,FALSE)*(E48+G48)) -> 0 | K48: =IF(ISNA(VLOOKUP($C48,'Coverage Reference'!$B$4:$G$16,6,FALSE))=TRUE,0,VLOOKUP($C48,'Coverage Reference'!$B$4:$G$16,6,FALSE)*(E48+G48)) -> 0
A49: =VLOOKUP($C49,'Article Reference'!$A$2:$C$45,2,FALSE) -> Honor® Intrinsic™ brand Fungicide | B49: =VLOOKUP($C49,'Article Reference'!$A$2:$C$45,3,FALSE) -> 1 x 36 lb | C49: 59012885 | E49: =1*E48 -> 0 | G49: =1*G48 -> 0 | I49: =IF(ISNA(VLOOKUP($C49,'Coverage Reference'!$B$4:$G$16,4,FALSE))=TRUE,0,VLOOKUP($C49,'Coverage Reference'!$B$4:$G$16,4,FALSE)*(E49+G49)) -> 0 | J49: =IF(ISNA(VLOOKUP($C49,'Coverage Reference'!$B$4:$G$16,5,FALSE))=TRUE,0,VLOOKUP($C49,'Coverage Reference'!$B$4:$G$16,5,FALSE)*(E49+G49)) -> 0 | K49: =IF(ISNA(VLOOKUP($C49,'Coverage Reference'!$B$4:$G$16,6,FALSE))=TRUE,0,VLOOKUP($C49,'Coverage Reference'!$B$4:$G$16,6,FALSE)*(E49+G49)) -> 0
A50: =VLOOKUP($C50,'Article Reference'!$A$2:$C$45,2,FALSE) -> Lexicon® Intrinsic™ Brand Fungicide | B50: =VLOOKUP($C50,'Article Reference'!$A$2:$C$45,3,FALSE) -> 4x 21 oz | C50: 59013840 | E50: =3*E48 -> 0 | G50: =3*G48 -> 0 | I50: =IF(ISNA(VLOOKUP($C50,'Coverage Reference'!$B$4:$G$16,4,FALSE))=TRUE,0,VLOOKUP($C50,'Coverage Reference'!$B$4:$G$16,4,FALSE)*(E50+G50)) -> 0 | J50: =IF(ISNA(VLOOKUP($C50,'Coverage Reference'!$B$4:$G$16,5,FALSE))=TRUE,0,VLOOKUP($C50,'Coverage Reference'!$B$4:$G$16,5,FALSE)*(E50+G50)) -> 0 | K50: =IF(ISNA(VLOOKUP($C50,'Coverage Reference'!$B$4:$G$16,6,FALSE))=TRUE,0,VLOOKUP($C50,'Coverage Reference'!$B$4:$G$16,6,FALSE)*(E50+G50)) -> 0
A51: Greens Foundation Cube | B51: Cube | C51: 59014396 | D51: 5791 | E51: 0 | F51: 0 | G51: 0 | H51: 0 | I51: =IF(ISNA(VLOOKUP($C51,'Coverage Reference'!$B$4:$G$16,4,FALSE))=TRUE,0,VLOOKUP($C51,'Coverage Reference'!$B$4:$G$16,4,FALSE)*(E51+G51)) -> 0 | J51: =IF(ISNA(VLOOKUP($C51,'Coverage Reference'!$B$4:$G$16,5,FALSE))=TRUE,0,VLOOKUP($C51,'Coverage Reference'!$B$4:$G$16,5,FALSE)*(E51+G51)) -> 0 | K51: =IF(ISNA(VLOOKUP($C51,'Coverage Reference'!$B$4:$G$16,6,FALSE))=TRUE,0,VLOOKUP($C51,'Coverage Reference'!$B$4:$G$16,6,FALSE)*(E51+G51)) -> 0
A52: =VLOOKUP($C52,'Article Reference'!$A$2:$C$45,2,FALSE) -> Lexicon® Intrinsic™ Brand Fungicide | B52: =VLOOKUP($C52,'Article Reference'!$A$2:$C$45,3,FALSE) -> 4x 21 oz | C52: 59013840 | E52: =1*E51 -> 0 | G52: =1*G51 -> 0 | I52: =IF(ISNA(VLOOKUP($C52,'Coverage Reference'!$B$4:$G$16,4,FALSE))=TRUE,0,VLOOKUP($C52,'Coverage Reference'!$B$4:$G$16,4,FALSE)*(E52+G52)) -> 0 | J52: =IF(ISNA(VLOOKUP($C52,'Coverage Reference'!$B$4:$G$16,5,FALSE))=TRUE,0,VLOOKUP($C52,'Coverage Reference'!$B$4:$G$16,5,FALSE)*(E52+G52)) -> 0 | K52: =IF(ISNA(VLOOKUP($C52,'Coverage Reference'!$B$4:$G$16,6,FALSE))=TRUE,0,VLOOKUP($C52,'Coverage Reference'!$B$4:$G$16,6,FALSE)*(E52+G52)) -> 0
A53: =VLOOKUP($C53,'Article Reference'!$A$2:$C$45,2,FALSE) -> Insignia® SC Intrinsic™ brand Fungicide | B53: =VLOOKUP($C53,'Article Reference'!$A$2:$C$45,3,FALSE) -> 4 x 30.5 fl oz | C53: 59014134 | E53: =2*E51 -> 0 | G53: =2*G51 -> 0 | I53: =IF(ISNA(VLOOKUP($C53,'Coverage Reference'!$B$4:$G$16,4,FALSE))=TRUE,0,VLOOKUP($C53,'Coverage Reference'!$B$4:$G$16,4,FALSE)*(E53+G53)) -> 0 | J53: =IF(ISNA(VLOOKUP($C53,'Coverage Reference'!$B$4:$G$16,5,FALSE))=TRUE,0,VLOOKUP($C53,'Coverage Reference'!$B$4:$G$16,5,FALSE)*(E53+G53)) -> 0 | K53: =IF(ISNA(VLOOKUP($C53,'Coverage Reference'!$B$4:$G$16,6,FALSE))=TRUE,0,VLOOKUP($C53,'Coverage Reference'!$B$4:$G$16,6,FALSE)*(E53+G53)) -> 0
A54: =VLOOKUP($C54,'Article Reference'!$A$2:$C$45,2,FALSE) -> Trinity fungicide | B54: =VLOOKUP($C54,'Article Reference'!$A$2:$C$45,3,FALSE) -> 2.5 gal. | C54: 59011038 | E54: =1*E51 -> 0 | G54: =1*G51 -> 0 | I54: =IF(ISNA(VLOOKUP($C54,'Coverage Reference'!$B$4:$G$16,4,FALSE))=TRUE,0,VLOOKUP($C54,'Coverage Reference'!$B$4:$G$16,4,FALSE)*(E54+G54)) -> 0 | J54: =IF(ISNA(VLOOKUP($C54,'Coverage Reference'!$B$4:$G$16,5,FALSE))=TRUE,0,VLOOKUP($C54,'Coverage Reference'!$B$4:$G$16,5,FALSE)*(E54+G54)) -> 0 | K54: =IF(ISNA(VLOOKUP($C54,'Coverage Reference'!$B$4:$G$16,6,FALSE))=TRUE,0,VLOOKUP($C54,'Coverage Reference'!$B$4:$G$16,6,FALSE)*(E54+G54)) -> 0
A55: Naturalized Area II Cube | B55: Cube | C55: 59014556 | D55: 4338 | E55: 0 | F55: 0 | G55: 0 | H55: 0 | I55: =IF(ISNA(VLOOKUP($C55,'Coverage Reference'!$B$4:$G$16,4,FALSE))=TRUE,0,VLOOKUP($C55,'Coverage Reference'!$B$4:$G$16,4,FALSE)*(E55+G55)) -> 0 | J55: =IF(ISNA(VLOOKUP($C55,'Coverage Reference'!$B$4:$G$16,5,FALSE))=TRUE,0,VLOOKUP($C55,'Coverage Reference'!$B$4:$G$16,5,FALSE)*(E55+G55)) -> 0 | K55: =IF(ISNA(VLOOKUP($C55,'Coverage Reference'!$B$4:$G$16,6,FALSE))=TRUE,0,VLOOKUP($C55,'Coverage Reference'!$B$4:$G$16,6,FALSE)*(E55+G55)) -> 0
A56: =VLOOKUP($C56,'Article Reference'!$A$2:$C$45,2,FALSE) -> Pendulum® AquaCap™ Herbicide | B56: =VLOOKUP($C56,'Article Reference'!$A$2:$C$45,3,FALSE) -> 1 x 15 gal | C56: 59011279 | E56: =E55*2 -> 0 | G56: =G55*2 -> 0 | I56: =IF(ISNA(VLOOKUP($C56,'Coverage Reference'!$B$4:$G$16,4,FALSE))=TRUE,0,VLOOKUP($C56,'Coverage Reference'!$B$4:$G$16,4,FALSE)*(E56+G56)) -> 0 | J56: =IF(ISNA(VLOOKUP($C56,'Coverage Reference'!$B$4:$G$16,5,FALSE))=TRUE,0,VLOOKUP($C56,'Coverage Reference'!$B$4:$G$16,5,FALSE)*(E56+G56)) -> 0 | K56: =IF(ISNA(VLOOKUP($C56,'Coverage Reference'!$B$4:$G$16,6,FALSE))=TRUE,0,VLOOKUP($C56,'Coverage Reference'!$B$4:$G$16,6,FALSE)*(E56+G56)) -> 0
A57: =VLOOKUP($C57,'Article Reference'!$A$2:$C$45,2,FALSE) -> Pylex Herbicide | B57: 2 x 2.5 gal. | C57: 59013624 | E57: =E55*1 -> 0 | G57: =G55*1 -> 0
A58: =VLOOKUP($C58,'Article Reference'!$A$2:$C$45,2,FALSE) -> Segment II Herbicide | B58: 4 x 1 gal | C58: 59014427 | E58: =E55*1 -> 0 | G58: =G55*1 -> 0 | I58: =IF(ISNA(VLOOKUP($C58,'Coverage Reference'!$B$4:$G$16,4,FALSE))=TRUE,0,VLOOKUP($C58,'Coverage Reference'!$B$4:$G$16,4,FALSE)*(E58+G58)) -> 0 | J58: =IF(ISNA(VLOOKUP($C58,'Coverage Reference'!$B$4:$G$16,5,FALSE))=TRUE,0,VLOOKUP($C58,'Coverage Reference'!$B$4:$G$16,5,FALSE)*(E58+G58)) -> 0 | K58: =IF(ISNA(VLOOKUP($C58,'Coverage Reference'!$B$4:$G$16,6,FALSE))=TRUE,0,VLOOKUP($C58,'Coverage Reference'!$B$4:$G$16,6,FALSE)*(E58+G58)) -> 0
A59: =VLOOKUP($C59,'Article Reference'!$A$2:$C$45,2,FALSE) -> Emerald® Fungicide | B59: =VLOOKUP($C59,'Article Reference'!$A$2:$C$45,3,FALSE) -> 10 x 0.49 lb | C59: 59021463 | D59: 1568 | E59: 0 | F59: 0 | G59: 0 | H59: 0 | I59: =IF(ISNA(VLOOKUP($C59,'Coverage Reference'!$B$4:$G$16,4,FALSE))=TRUE,0,VLOOKUP($C59,'Coverage Reference'!$B$4:$G$16,4,FALSE)*(E59+G59)) -> 0 | J59: =IF(ISNA(VLOOKUP($C59,'Coverage Reference'!$B$4:$G$16,5,FALSE))=TRUE,0,VLOOKUP($C59,'Coverage Reference'!$B$4:$G$16,5,FALSE)*(E59+G59)) -> 0 | K59: =IF(ISNA(VLOOKUP($C59,'Coverage Reference'!$B$4:$G$16,6,FALSE))=TRUE,0,VLOOKUP($C59,'Coverage Reference'!$B$4:$G$16,6,FALSE)*(E59+G59)) -> 0
A60: =VLOOKUP($C60,'Article Reference'!$A$2:$C$45,2,FALSE) -> Emerald® Fungicide | B60: =VLOOKUP($C60,'Article Reference'!$A$2:$C$45,3,FALSE) -> 50 x 0.49 lb | C60: 59012825 | D60: 6835.5 | E60: 0 | F60: 0 | G60: 0 | H60: 0 | I60: =IF(ISNA(VLOOKUP($C60,'Coverage Reference'!$B$4:$G$16,4,FALSE))=TRUE,0,VLOOKUP($C60,'Coverage Reference'!$B$4:$G$16,4,FALSE)*(E60+G60)) -> 0 | J60: =IF(ISNA(VLOOKUP($C60,'Coverage Reference'!$B$4:$G$16,5,FALSE))=TRUE,0,VLOOKUP($C60,'Coverage Reference'!$B$4:$G$16,5,FALSE)*(E60+G60)) -> 0 | K60: =IF(ISNA(VLOOKUP($C60,'Coverage Reference'!$B$4:$G$16,6,FALSE))=TRUE,0,VLOOKUP($C60,'Coverage Reference'!$B$4:$G$16,6,FALSE)*(E60+G60)) -> 0
A61: =VLOOKUP($C61,'Article Reference'!$A$2:$C$45,2,FALSE) -> FreeHand® Herbicide | B61: =VLOOKUP($C61,'Article Reference'!$A$2:$C$45,3,FALSE) -> 1 x 50 lb | C61: 59011296 | D61: 93.5 | E61: 0 | F61: 0 | G61: 0 | H61: 0 | I61: =IF(ISNA(VLOOKUP($C61,'Coverage Reference'!$B$4:$G$16,4,FALSE))=TRUE,0,VLOOKUP($C61,'Coverage Reference'!$B$4:$G$16,4,FALSE)*(E61+G61)) -> 0 | J61: =IF(ISNA(VLOOKUP($C61,'Coverage Reference'!$B$4:$G$16,5,FALSE))=TRUE,0,VLOOKUP($C61,'Coverage Reference'!$B$4:$G$16,5,FALSE)*(E61+G61)) -> 0 | K61: =IF(ISNA(VLOOKUP($C61,'Coverage Reference'!$B$4:$G$16,6,FALSE))=TRUE,0,VLOOKUP($C61,'Coverage Reference'!$B$4:$G$16,6,FALSE)*(E61+G61)) -> 0
A62: =VLOOKUP($C62,'Article Reference'!$A$2:$C$45,2,FALSE) -> Honor® Intrinsic™ brand Fungicide | B62: =VLOOKUP($C62,'Article Reference'!$A$2:$C$45,3,FALSE) -> 6 x 3 lb | C62: 59012350 | D62: 2616.12 | E62: 0 | F62: 0 | G62: 0 | H62: 0 | I62: =IF(ISNA(VLOOKUP($C62,'Coverage Reference'!$B$4:$G$16,4,FALSE))=TRUE,0,VLOOKUP($C62,'Coverage Reference'!$B$4:$G$16,4,FALSE)*(E62+G62)) -> 0 | J62: =IF(ISNA(VLOOKUP($C62,'Coverage Reference'!$B$4:$G$16,5,FALSE))=TRUE,0,VLOOKUP($C62,'Coverage Reference'!$B$4:$G$16,5,FALSE)*(E62+G62)) -> 0 | K62: =IF(ISNA(VLOOKUP($C62,'Coverage Reference'!$B$4:$G$16,6,FALSE))=TRUE,0,VLOOKUP($C62,'Coverage Reference'!$B$4:$G$16,6,FALSE)*(E62+G62)) -> 0
A63: =VLOOKUP($C63,'Article Reference'!$A$2:$C$45,2,FALSE) -> Honor® Intrinsic™ brand Fungicide | B63: =VLOOKUP($C63,'Article Reference'!$A$2:$C$45,3,FALSE) -> 1 x 36 lb | C63: 59012885 | D63: 3891.24 | E63: 0 | F63: 0 | G63: 0 | H63: 0 | I63: =IF(ISNA(VLOOKUP($C63,'Coverage Reference'!$B$4:$G$16,4,FALSE))=TRUE,0,VLOOKUP($C63,'Coverage Reference'!$B$4:$G$16,4,FALSE)*(E63+G63)) -> 0 | J63: =IF(ISNA(VLOOKUP($C63,'Coverage Reference'!$B$4:$G$16,5,FALSE))=TRUE,0,VLOOKUP($C63,'Coverage Reference'!$B$4:$G$16,5,FALSE)*(E63+G63)) -> 0 | K63: =IF(ISNA(VLOOKUP($C63,'Coverage Reference'!$B$4:$G$16,6,FALSE))=TRUE,0,VLOOKUP($C63,'Coverage Reference'!$B$4:$G$16,6,FALSE)*(E63+G63)) -> 0
A64: =VLOOKUP($C64,'Article Reference'!$A$2:$C$45,2,FALSE) -> Insignia® SC Intrinsic™ brand Fungicide | B64: =VLOOKUP($C64,'Article Reference'!$A$2:$C$45,3,FALSE) -> 4 x 30.5 fl oz | C64: 59014134 | D64: 1700.68 | E64: 0 | F64: 0 | G64: 0 | H64: 0 | I64: =IF(ISNA(VLOOKUP($C64,'Coverage Reference'!$B$4:$G$16,4,FALSE))=TRUE,0,VLOOKUP($C64,'Coverage Reference'!$B$4:$G$16,4,FALSE)*(E64+G64)) -> 0 | J64: =IF(ISNA(VLOOKUP($C64,'Coverage Reference'!$B$4:$G$16,5,FALSE))=TRUE,0,VLOOKUP($C64,'Coverage Reference'!$B$4:$G$16,5,FALSE)*(E64+G64)) -> 0 | K64: =IF(ISNA(VLOOKUP($C64,'Coverage Reference'!$B$4:$G$16,6,FALSE))=TRUE,0,VLOOKUP($C64,'Coverage Reference'!$B$4:$G$16,6,FALSE)*(E64+G64)) -> 0
A65: =VLOOKUP($C65,'Article Reference'!$A$2:$C$45,2,FALSE) -> Insignia® SC Intrinsic™ brand Fungicide | B65: =VLOOKUP($C65,'Article Reference'!$A$2:$C$45,3,FALSE) -> 4 x 122 fl oz | C65: 59012450 | D65: 6368.4 | E65: 0 | F65: 0 | G65: 0 | H65: 0 | I65: =IF(ISNA(VLOOKUP($C65,'Coverage Reference'!$B$4:$G$16,4,FALSE))=TRUE,0,VLOOKUP($C65,'Coverage Reference'!$B$4:$G$16,4,FALSE)*(E65+G65)) -> 0 | J65: =IF(ISNA(VLOOKUP($C65,'Coverage Reference'!$B$4:$G$16,5,FALSE))=TRUE,0,VLOOKUP($C65,'Coverage Reference'!$B$4:$G$16,5,FALSE)*(E65+G65)) -> 0 | K65: =IF(ISNA(VLOOKUP($C65,'Coverage Reference'!$B$4:$G$16,6,FALSE))=TRUE,0,VLOOKUP($C65,'Coverage Reference'!$B$4:$G$16,6,FALSE)*(E65+G65)) -> 0
A66: =VLOOKUP($C66,'Article Reference'!$A$2:$C$45,2,FALSE) -> Insignia® SC Intrinsic™ brand Fungicide | B66: =VLOOKUP($C66,'Article Reference'!$A$2:$C$45,3,FALSE) -> 2x 2.5 gal | C66: 59014135 | D66: 5795 | E66: 0 | F66: 0 | G66: 0 | H66: 0 | I66: =IF(ISNA(VLOOKUP($C66,'Coverage Reference'!$B$4:$G$16,4,FALSE))=TRUE,0,VLOOKUP($C66,'Coverage Reference'!$B$4:$G$16,4,FALSE)*(E66+G66)) -> 0 | J66: =IF(ISNA(VLOOKUP($C66,'Coverage Reference'!$B$4:$G$16,5,FALSE))=TRUE,0,VLOOKUP($C66,'Coverage Reference'!$B$4:$G$16,5,FALSE)*(E66+G66)) -> 0 | K66: =IF(ISNA(VLOOKUP($C66,'Coverage Reference'!$B$4:$G$16,6,FALSE))=TRUE,0,VLOOKUP($C66,'Coverage Reference'!$B$4:$G$16,6,FALSE)*(E66+G66)) -> 0
A67: =VLOOKUP($C67,'Article Reference'!$A$2:$C$45,2,FALSE) -> Lexicon® Intrinsic™ Brand Fungicide | B67: =VLOOKUP($C67,'Article Reference'!$A$2:$C$45,3,FALSE) -> 4x 21 oz | C67: 59013840 | D67: 1935.36 | E67: 0 | F67: =D67*E67 -> 0 | G67: 0 | H67: =G67*D67 -> 0 | I67: =IF(ISNA(VLOOKUP($C67,'Coverage Reference'!$B$4:$G$16,4,FALSE))=TRUE,0,VLOOKUP($C67,'Coverage Reference'!$B$4:$G$16,4,FALSE)*(E67+G67)) -> 0 | J67: =IF(ISNA(VLOOKUP($C67,'Coverage Reference'!$B$4:$G$16,5,FALSE))=TRUE,0,VLOOKUP($C67,'Coverage Reference'!$B$4:$G$16,5,FALSE)*(E67+G67)) -> 0 | K67: =IF(ISNA(VLOOKUP($C67,'Coverage Reference'!$B$4:$G$16,6,FALSE))=TRUE,0,VLOOKUP($C67,'Coverage Reference'!$B$4:$G$16,6,FALSE)*(E67+G67)) -> 0
A68: =VLOOKUP($C68,'Article Reference'!$A$2:$C$45,2,FALSE) -> Orkestra™ Intrinsic™ brand fungicide | B68: =VLOOKUP($C68,'Article Reference'!$A$2:$C$45,3,FALSE) -> 4x 16 oz | C68: 59014379 | D68: 544 | E68: 0 | F68: =D68*E68 -> 0 | G68: 0 | H68: =G68*D68 -> 0
A69: =VLOOKUP($C69,'Article Reference'!$A$2:$C$45,2,FALSE) -> Pendulum® AquaCap™ Herbicide | B69: =VLOOKUP($C69,'Article Reference'!$A$2:$C$45,3,FALSE) -> 1 x 15 gal | C69: 59011279 | D69: 735.3 | E69: 0 | F69: 0 | G69: 0 | H69: 0 | I69: =IF(ISNA(VLOOKUP($C69,'Coverage Reference'!$B$4:$G$16,4,FALSE))=TRUE,0,VLOOKUP($C69,'Coverage Reference'!$B$4:$G$16,4,FALSE)*(E69+G69)) -> 0 | J69: =IF(ISNA(VLOOKUP($C69,'Coverage Reference'!$B$4:$G$16,5,FALSE))=TRUE,0,VLOOKUP($C69,'Coverage Reference'!$B$4:$G$16,5,FALSE)*(E69+G69)) -> 0 | K69: =IF(ISNA(VLOOKUP($C69,'Coverage Reference'!$B$4:$G$16,6,FALSE))=TRUE,0,VLOOKUP($C69,'Coverage Reference'!$B$4:$G$16,6,FALSE)*(E69+G69)) -> 0
A70: =VLOOKUP($C70,'Article Reference'!$A$2:$C$45,2,FALSE) -> Pendulum® AquaCap™ Bulk Herbicide | B70: =VLOOKUP($C70,'Article Reference'!$A$2:$C$45,3,FALSE) -> 110 gal | C70: 59049202 | D70: 5392.2 | E70: 0 | F70: 0 | G70: 0 | H70: 0 | I70: =IF(ISNA(VLOOKUP($C70,'Coverage Reference'!$B$4:$G$16,4,FALSE))=TRUE,0,VLOOKUP($C70,'Coverage Reference'!$B$4:$G$16,4,FALSE)*(E70+G70)) -> 0 | J70: =IF(ISNA(VLOOKUP($C70,'Coverage Reference'!$B$4:$G$16,5,FALSE))=TRUE,0,VLOOKUP($C70,'Coverage Reference'!$B$4:$G$16,5,FALSE)*(E70+G70)) -> 0 | K70: =IF(ISNA(VLOOKUP($C70,'Coverage Reference'!$B$4:$G$16,6,FALSE))=TRUE,0,VLOOKUP($C70,'Coverage Reference'!$B$4:$G$16,6,FALSE)*(E70+G70)) -> 0
A71: =VLOOKUP($C71,'Article Reference'!$A$2:$C$45,2,FALSE) -> Pendulum® AquaCap™ Bulk Herbicide | B71: 220 gal | C71: 59049202 | D71: 10784.4 | E71: 0 | F71: 0 | G71: 0 | H71: 0 | I71: =IF(ISNA(VLOOKUP($C71,'Coverage Reference'!$B$4:$G$16,4,FALSE))=TRUE,0,VLOOKUP($C71,'Coverage Reference'!$B$4:$G$16,4,FALSE)*(E71+G71)) -> 0 | J71: =IF(ISNA(VLOOKUP($C71,'Coverage Reference'!$B$4:$G$16,5,FALSE))=TRUE,0,VLOOKUP($C71,'Coverage Reference'!$B$4:$G$16,5,FALSE)*(E71+G71)) -> 0 | K71: =IF(ISNA(VLOOKUP($C71,'Coverage Reference'!$B$4:$G$16,6,FALSE))=TRUE,0,VLOOKUP($C71,'Coverage Reference'!$B$4:$G$16,6,FALSE)*(E71+G71)) -> 0
A72: =VLOOKUP($C72,'Article Reference'!$A$2:$C$45,2,FALSE) -> Tower® Herbicide | B72: =VLOOKUP($C72,'Article Reference'!$A$2:$C$45,3,FALSE) -> 2 x 2.5 gal | C72: 59014247 | D72: 1482.5 | E72: 0 | F72: 0 | G72: 0 | H72: 0 | I72: =IF(ISNA(VLOOKUP($C72,'Coverage Reference'!$B$4:$G$16,4,FALSE))=TRUE,0,VLOOKUP($C72,'Coverage Reference'!$B$4:$G$16,4,FALSE)*(E72+G72)) -> 0 | J72: =IF(ISNA(VLOOKUP($C72,'Coverage Reference'!$B$4:$G$16,5,FALSE))=TRUE,0,VLOOKUP($C72,'Coverage Reference'!$B$4:$G$16,5,FALSE)*(E72+G72)) -> 0 | K72: =IF(ISNA(VLOOKUP($C72,'Coverage Reference'!$B$4:$G$16,6,FALSE))=TRUE,0,VLOOKUP($C72,'Coverage Reference'!$B$4:$G$16,6,FALSE)*(E72+G72)) -> 0
A73: =VLOOKUP($C73,'Article Reference'!$A$2:$C$45,2,FALSE) -> Xzemplar™ Fungicide | B73: =VLOOKUP($C73,'Article Reference'!$A$2:$C$45,3,FALSE) -> 2x 114 oz | C73: 59013833 | D73: 3565.92 | E73: 0 | F73: 0 | G73: 0 | H73: 0 | I73: =IF(ISNA(VLOOKUP($C73,'Coverage Reference'!$B$4:$G$16,4,FALSE))=TRUE,0,VLOOKUP($C73,'Coverage Reference'!$B$4:$G$16,4,FALSE)*(E73+G73)) -> 0 | J73: =IF(ISNA(VLOOKUP($C73,'Coverage Reference'!$B$4:$G$16,5,FALSE))=TRUE,0,VLOOKUP($C73,'Coverage Reference'!$B$4:$G$16,5,FALSE)*(E73+G73)) -> 0 | K73: =IF(ISNA(VLOOKUP($C73,'Coverage Reference'!$B$4:$G$16,6,FALSE))=TRUE,0,VLOOKUP($C73,'Coverage Reference'!$B$4:$G$16,6,FALSE)*(E73+G73)) -> 0
A74: =VLOOKUP($C74,'Article Reference'!$A$2:$C$45,2,FALSE) -> Xzemplar™Fungicide | B74: =VLOOKUP($C74,'Article Reference'!$A$2:$C$45,3,FALSE) -> 4 x 11.4 oz | C74: 59014120 | D74: 820.8 | E74: 0 | F74: 0 | G74: 0 | H74: 0 | I74: =IF(ISNA(VLOOKUP($C74,'Coverage Reference'!$B$4:$G$16,4,FALSE))=TRUE,0,VLOOKUP($C74,'Coverage Reference'!$B$4:$G$16,4,FALSE)*(E74+G74)) -> 0 | J74: =IF(ISNA(VLOOKUP($C74,'Coverage Reference'!$B$4:$G$16,5,FALSE))=TRUE,0,VLOOKUP($C74,'Coverage Reference'!$B$4:$G$16,5,FALSE)*(E74+G74)) -> 0 | K74: =IF(ISNA(VLOOKUP($C74,'Coverage Reference'!$B$4:$G$16,6,FALSE))=TRUE,0,VLOOKUP($C74,'Coverage Reference'!$B$4:$G$16,6,FALSE)*(E74+G74)) -> 0
A75: AGENCY SUB-TOTAL | F75: =SUM(F28:F74) -> 0 | H75: =SUM(H28:H74) -> 0 | I75: =H75+F75 -> 0
A76: Qualifying Non-Agency Products | B76: Package | C76: Article Number | D76: Redemption Value | E76: Oct Order (Cases) | F76: Oct Sales | G76: Nov-Dec Order (Cases) | H76: Nov-Dec Sales | I76: Acres Low | J76: Acres Mid | K76: Acres High
A77: Admiral Lake Colorant | B77: 4 x 1 gal. | C77: 59013341 | D77: 163.95 | E77: 0 | F77: =E77*D77 -> 0 | G77: 0 | H77: =G77*D77 -> 0 | I77: =IF(ISNA(VLOOKUP($C77,'Coverage Reference'!$B$4:$G$16,4,FALSE))=TRUE,0,VLOOKUP($C77,'Coverage Reference'!$B$4:$G$16,4,FALSE)*(E77+G77)) -> 0 | J77: =IF(ISNA(VLOOKUP($C77,'Coverage Reference'!$B$4:$G$16,5,FALSE))=TRUE,0,VLOOKUP($C77,'Coverage Reference'!$B$4:$G$16,5,FALSE)*(E77+G77)) -> 0 | K77: =IF(ISNA(VLOOKUP($C77,'Coverage Reference'!$B$4:$G$16,6,FALSE))=TRUE,0,VLOOKUP($C77,'Coverage Reference'!$B$4:$G$16,6,FALSE)*(E77+G77)) -> 0
A78: Black Onyx Lake Colorant | B78: 4 x 1 gal. | C78: 59013424 | D78: 298.1 | E78: 0 | F78: =E78*D78 -> 0 | G78: 0 | H78: =G78*D78 -> 0 | I78: =IF(ISNA(VLOOKUP($C78,'Coverage Reference'!$B$4:$G$16,4,FALSE))=TRUE,0,VLOOKUP($C78,'Coverage Reference'!$B$4:$G$16,4,FALSE)*(E78+G78)) -> 0 | J78: =IF(ISNA(VLOOKUP($C78,'Coverage Reference'!$B$4:$G$16,5,FALSE))=TRUE,0,VLOOKUP($C78,'Coverage Reference'!$B$4:$G$16,5,FALSE)*(E78+G78)) -> 0 | K78: =IF(ISNA(VLOOKUP($C78,'Coverage Reference'!$B$4:$G$16,6,FALSE))=TRUE,0,VLOOKUP($C78,'Coverage Reference'!$B$4:$G$16,6,FALSE)*(E78+G78)) -> 0
A79: Drive XLR8 herbicide | B79: 4 x 0.5 lb. | C79: 59011404 | D79: 294.03 | E79: 0 | F79: 0 | G79: 0 | H79: 0 | I79: =IF(ISNA(VLOOKUP($C79,'Coverage Reference'!$B$4:$G$16,4,FALSE))=TRUE,0,VLOOKUP($C79,'Coverage Reference'!$B$4:$G$16,4,FALSE)*(E79+G79)) -> 0 | J79: =IF(ISNA(VLOOKUP($C79,'Coverage Reference'!$B$4:$G$16,5,FALSE))=TRUE,0,VLOOKUP($C79,'Coverage Reference'!$B$4:$G$16,5,FALSE)*(E79+G79)) -> 0 | K79: =IF(ISNA(VLOOKUP($C79,'Coverage Reference'!$B$4:$G$16,6,FALSE))=TRUE,0,VLOOKUP($C79,'Coverage Reference'!$B$4:$G$16,6,FALSE)*(E79+G79)) -> 0
A80: Green Lawnger turf colorant | B80: 2 x 2.5 gal. | C80: 59013430 | D80: 285.63 | E80: 0 | F80: 0 | G80: 0 | H80: 0 | I80: =IF(ISNA(VLOOKUP($C80,'Coverage Reference'!$B$4:$G$16,4,FALSE))=TRUE,0,VLOOKUP($C80,'Coverage Reference'!$B$4:$G$16,4,FALSE)*(E80+G80)) -> 0 | J80: =IF(ISNA(VLOOKUP($C80,'Coverage Reference'!$B$4:$G$16,5,FALSE))=TRUE,0,VLOOKUP($C80,'Coverage Reference'!$B$4:$G$16,5,FALSE)*(E80+G80)) -> 0 | K80: =IF(ISNA(VLOOKUP($C80,'Coverage Reference'!$B$4:$G$16,6,FALSE))=TRUE,0,VLOOKUP($C80,'Coverage Reference'!$B$4:$G$16,6,FALSE)*(E80+G80)) -> 0
A81: Pendulum Aquacap herbicide | B81: 2 x 2.5 gal. | C81: 59049276 | D81: 337.88 | E81: 0 | F81: 0 | G81: 0 | H81: 0 | I81: =IF(ISNA(VLOOKUP($C81,'Coverage Reference'!$B$4:$G$16,4,FALSE))=TRUE,0,VLOOKUP($C81,'Coverage Reference'!$B$4:$G$16,4,FALSE)*(E81+G81)) -> 0 | J81: =IF(ISNA(VLOOKUP($C81,'Coverage Reference'!$B$4:$G$16,5,FALSE))=TRUE,0,VLOOKUP($C81,'Coverage Reference'!$B$4:$G$16,5,FALSE)*(E81+G81)) -> 0 | K81: =IF(ISNA(VLOOKUP($C81,'Coverage Reference'!$B$4:$G$16,6,FALSE))=TRUE,0,VLOOKUP($C81,'Coverage Reference'!$B$4:$G$16,6,FALSE)*(E81+G81)) -> 0
A82: Pillar G Intrinsic brand fungicide | B82: 30 lb. | C82: 59012784 | D82: 74.63 | E82: 0 | F82: 0 | G82: 0 | H82: 0 | I82: =IF(ISNA(VLOOKUP($C82,'Coverage Reference'!$B$4:$G$16,4,FALSE))=TRUE,0,VLOOKUP($C82,'Coverage Reference'!$B$4:$G$16,4,FALSE)*(E82+G82)) -> 0 | J82: =IF(ISNA(VLOOKUP($C82,'Coverage Reference'!$B$4:$G$16,5,FALSE))=TRUE,0,VLOOKUP($C82,'Coverage Reference'!$B$4:$G$16,5,FALSE)*(E82+G82)) -> 0 | K82: =IF(ISNA(VLOOKUP($C82,'Coverage Reference'!$B$4:$G$16,6,FALSE))=TRUE,0,VLOOKUP($C82,'Coverage Reference'!$B$4:$G$16,6,FALSE)*(E82+G82)) -> 0
A83: Pylex Herbicide | B83: 4x 8 fl. Oz. | C83: 59013624 | D83: 2224.8 | E83: 0 | F83: 0 | G83: 0 | H83: 0 | I83: =IF(ISNA(VLOOKUP($C83,'Coverage Reference'!$B$4:$G$16,4,FALSE))=TRUE,0,VLOOKUP($C83,'Coverage Reference'!$B$4:$G$16,4,FALSE)*(E83+G83)) -> 0 | J83: =IF(ISNA(VLOOKUP($C83,'Coverage Reference'!$B$4:$G$16,5,FALSE))=TRUE,0,VLOOKUP($C83,'Coverage Reference'!$B$4:$G$16,5,FALSE)*(E83+G83)) -> 0 | K83: =IF(ISNA(VLOOKUP($C83,'Coverage Reference'!$B$4:$G$16,6,FALSE))=TRUE,0,VLOOKUP($C83,'Coverage Reference'!$B$4:$G$16,6,FALSE)*(E83+G83)) -> 0
A84: Segment II Herbicide-NEW | B84: 2x2.5 gallon | C84: 59011288 | D84: 1125 | E84: 0 | F84: 0 | G84: 0 | H84: 0 | I84: =IF(ISNA(VLOOKUP($C84,'Coverage Reference'!$B$4:$G$16,4,FALSE))=TRUE,0,VLOOKUP($C84,'Coverage Reference'!$B$4:$G$16,4,FALSE)*(E84+G84)) -> 0 | J84: =IF(ISNA(VLOOKUP($C84,'Coverage Reference'!$B$4:$G$16,5,FALSE))=TRUE,0,VLOOKUP($C84,'Coverage Reference'!$B$4:$G$16,5,FALSE)*(E84+G84)) -> 0 | K84: =IF(ISNA(VLOOKUP($C84,'Coverage Reference'!$B$4:$G$16,6,FALSE))=TRUE,0,VLOOKUP($C84,'Coverage Reference'!$B$4:$G$16,6,FALSE)*(E84+G84)) -> 0
A85: Siesta Insecticide Fire Ant bait | B85: 15 lb. | C85: 59011057 | D85: 204 | E85: 0 | F85: 0 | G85: 0 | H85: 0 | I85: =IF(ISNA(VLOOKUP($C85,'Coverage Reference'!$B$4:$G$16,4,FALSE))=TRUE,0,VLOOKUP($C85,'Coverage Reference'!$B$4:$G$16,4,FALSE)*(E85+G85)) -> 0 | J85: =IF(ISNA(VLOOKUP($C85,'Coverage Reference'!$B$4:$G$16,5,FALSE))=TRUE,0,VLOOKUP($C85,'Coverage Reference'!$B$4:$G$16,5,FALSE)*(E85+G85)) -> 0 | K85: =IF(ISNA(VLOOKUP($C85,'Coverage Reference'!$B$4:$G$16,6,FALSE))=TRUE,0,VLOOKUP($C85,'Coverage Reference'!$B$4:$G$16,6,FALSE)*(E85+G85)) -> 0
A86: Transition HC dark turf colorant | B86: 4 x 1 gal. | C86: 59013410 | D86: 606.35 | E86: 0 | F86: 0 | G86: 0 | H86: 0
A87: Trinity fungicide | B87: 2x 2.5 gal. | C87: 59011038 | D87: 1100.06 | E87: 0 | F87: 0 | G87: 0 | H87: 0 | I87: =IF(ISNA(VLOOKUP($C87,'Coverage Reference'!$B$4:$G$16,4,FALSE))=TRUE,0,VLOOKUP($C87,'Coverage Reference'!$B$4:$G$16,4,FALSE)*(E87+G87)) -> 0 | J87: =IF(ISNA(VLOOKUP($C87,'Coverage Reference'!$B$4:$G$16,5,FALSE))=TRUE,0,VLOOKUP($C87,'Coverage Reference'!$B$4:$G$16,5,FALSE)*(E87+G87)) -> 0 | K87: =IF(ISNA(VLOOKUP($C87,'Coverage Reference'!$B$4:$G$16,6,FALSE))=TRUE,0,VLOOKUP($C87,'Coverage Reference'!$B$4:$G$16,6,FALSE)*(E87+G87)) -> 0
A88: Turf Mark spray indicator-Blue | B88: 2 x 2.5 gal. | C88: 59013417 | D88: 212.94 | E88: 0 | F88: =E88*D88 -> 0 | G88: 0 | H88: =G88*D88 -> 0
A89: Turf Mark spray indicator-Green | B89: 2 x 2.5 gal. | C89: 59013486 | D89: 258.88 | E89: 0 | F89: 0 | G89: 0 | H89: 0 | I89: =IF(ISNA(VLOOKUP($C89,'Coverage Reference'!$B$4:$G$16,4,FALSE))=TRUE,0,VLOOKUP($C89,'Coverage Reference'!$B$4:$G$16,4,FALSE)*(E89+G89)) -> 0 | J89: =IF(ISNA(VLOOKUP($C89,'Coverage Reference'!$B$4:$G$16,5,FALSE))=TRUE,0,VLOOKUP($C89,'Coverage Reference'!$B$4:$G$16,5,FALSE)*(E89+G89)) -> 0 | K89: =IF(ISNA(VLOOKUP($C89,'Coverage Reference'!$B$4:$G$16,6,FALSE))=TRUE,0,VLOOKUP($C89,'Coverage Reference'!$B$4:$G$16,6,FALSE)*(E89+G89)) -> 0
A90: Vision Pro HD turf colorant | B90: 4x1 gal. | C90: 59013342 | D90: 540.2 | E90: 0 | F90: 0 | G90: 0 | H90: 0 | I90: =IF(ISNA(VLOOKUP($C90,'Coverage Reference'!$B$4:$G$16,4,FALSE))=TRUE,0,VLOOKUP($C90,'Coverage Reference'!$B$4:$G$16,4,FALSE)*(E90+G90)) -> 0 | J90: =IF(ISNA(VLOOKUP($C90,'Coverage Reference'!$B$4:$G$16,5,FALSE))=TRUE,0,VLOOKUP($C90,'Coverage Reference'!$B$4:$G$16,5,FALSE)*(E90+G90)) -> 0 | K90: =IF(ISNA(VLOOKUP($C90,'Coverage Reference'!$B$4:$G$16,6,FALSE))=TRUE,0,VLOOKUP($C90,'Coverage Reference'!$B$4:$G$16,6,FALSE)*(E90+G90)) -> 0
A91: NON-AGENCY SUB-TOTAL | F91: =SUM(F77:F90) -> 0 | H91: =SUM(H77:H90) -> 0 | I91: =H91+F91 -> 0
A96: BASF has developed this calculator using formulas that approximate the rebate amount under the 2018 Early Order Program. The calculator is being shared with you for information purposes only and for your private use in preparing your own calculations. While every effort has been made to ensure the accuracy and reliability of the information and formulas, no guarantee is given nor responsibility taken by BASF for the accuracy of the calculator or the applicability to your particular circumstances. BASF PROVIDES THIS CALCULATOR AND ANY RESULT THEREFROM AS IS WITH ALL FAULTS AND WITH NO WARRANTY WHATSOEVER, EITHER EXPRESS OR IMPLIED, INCLUDING ANY WARRANTIES OF MERCHANTABILITY AND FITNESS FOR PARTICULAR PURPOSE. YOU ASSUME ANY AND ALL RISKS IN USING THE CALCULATOR AND RELYING ON THE INFORMATION CONTAINED HEREIN. IN NO CIRCUMSTANCES SHALL BASF BE LIABLE FOR ANY DAMAGES WHATSOEVER, INCLUDING BUT NOT LIMITED TO LOSS OF PROFIT, LOSS OF BUSINESS, LOSS OF SAVINGS, OR CONSEQUENTIAL DAMAGES, EVEN IF BASF HAS BEEN NOTIFIED AS SUCH.

Sheet Step 2 - Manage Applications
A17: Enter Acres for your Course (Required)
A18: Fairways & Tees Acres | C18: 0
A19: Greens Acres | C19: 0
A21: Please complete Yellow "Use Area" cells with either Fairways or Greens
A22: Fungicide Planner | M22: Fairways
A23: Product Name | B23: Case Size | C23: Use Area | D23: Low Rate | F23: Mid Rate | H23: High Rate | M23: Greens
D24: Total Acres | E24: Applications | F24: Total Acres | G24: Applications | H24: Total Acres | I24: Applications
A25: Xzemplar | B25: 2 x 114 oz | D25: =SUMIFS('Step 1 - Make Selections'!I$28:I$74,'Step 1 - Make Selections'!$C$28:$C$74,$K25)+SUMIFS('Step 1 - Make Selections'!I$77:I$90,'Step 1 - Make Selections'!$C$77:$C$90,$K25) -> 0 | E25: =IF(OR($C$18=0,$C$19=0),"Please Enter Acreage",IF(C25="Greens",D25/$C$19,IF(C25="Fairways",D25/$C$18,0))) -> Please Enter Acreage | F25: =SUMIFS('Step 1 - Make Selections'!J$28:J$74,'Step 1 - Make Selections'!$C$28:$C$74,$K25)+SUMIFS('Step 1 - Make Selections'!J$77:J$90,'Step 1 - Make Selections'!$C$77:$C$90,$K25) -> 0 | G25: =IF(OR($C$18=0,$C$19=0),"Please Enter Acreage",IF(C25="Greens",F25/$C$19,IF(C25="Fairways",F25/$C$18,0))) -> Please Enter Acreage | H25: =SUMIFS('Step 1 - Make Selections'!K$28:K$74,'Step 1 - Make Selections'!$C$28:$C$74,$K25)+SUMIFS('Step 1 - Make Selections'!K$77:K$90,'Step 1 - Make Selections'!$C$77:$C$90,$K25) -> 0 | I25: =IF(OR($C$18=0,$C$19=0),"Please Enter Acreage",IF(C25="Greens",H25/$C$19,IF(C25="Fairways",H25/$C$18,0))) -> Please Enter Acreage | K25: 59013833
B26: 4 x 11.4 oz | D26: =SUMIFS('Step 1 - Make Selections'!I$28:I$74,'Step 1 - Make Selections'!$C$28:$C$74,$K26)+SUMIFS('Step 1 - Make Selections'!I$77:I$90,'Step 1 - Make Selections'!$C$77:$C$90,$K26) -> 0 | E26: Please Enter Acreage | F26: =SUMIFS('Step 1 - Make Selections'!J$28:J$74,'Step 1 - Make Selections'!$C$28:$C$74,$K26)+SUMIFS('Step 1 - Make Selections'!J$77:J$90,'Step 1 - Make Selections'!$C$77:$C$90,$K26) -> 0 | G26: =IF(OR($C$18=0,$C$19=0),"Please Enter Acreage",IF(C26="Greens",F26/$C$19,IF(C26="Fairways",F26/$C$18,0))) -> Please Enter Acreage | H26: =SUMIFS('Step 1 - Make Selections'!K$28:K$74,'Step 1 - Make Selections'!$C$28:$C$74,$K26)+SUMIFS('Step 1 - Make Selections'!K$77:K$90,'Step 1 - Make Selections'!$C$77:$C$90,$K26) -> 0 | I26: Please Enter Acreage | K26: 59014120
A27: Emerald | B27: 10 x .49 lb. | D27: =SUMIFS('Step 1 - Make Selections'!I$28:I$74,'Step 1 - Make Selections'!$C$28:$C$74,$K27)+SUMIFS('Step 1 - Make Selections'!I$77:I$90,'Step 1 - Make Selections'!$C$77:$C$90,$K27) -> 0 | E27: Please Enter Acreage | F27: =SUMIFS('Step 1 - Make Selections'!J$28:J$74,'Step 1 - Make Selections'!$C$28:$C$74,$K27)+SUMIFS('Step 1 - Make Selections'!J$77:J$90,'Step 1 - Make Selections'!$C$77:$C$90,$K27) -> 0 | G27: =IF(OR($C$18=0,$C$19=0),"Please Enter Acreage",IF(C27="Greens",F27/$C$19,IF(C27="Fairways",F27/$C$18,0))) -> Please Enter Acreage | H27: =SUMIFS('Step 1 - Make Selections'!K$28:K$74,'Step 1 - Make Selections'!$C$28:$C$74,$K27)+SUMIFS('Step 1 - Make Selections'!K$77:K$90,'Step 1 - Make Selections'!$C$77:$C$90,$K27) -> 0 | I27: Please Enter Acreage | K27: 59021463
B28: 50 x .49 lb. | D28: =SUMIFS('Step 1 - Make Selections'!I$28:I$74,'Step 1 - Make Selections'!$C$28:$C$74,$K28)+SUMIFS('Step 1 - Make Selections'!I$77:I$90,'Step 1 - Make Selections'!$C$77:$C$90,$K28) -> 0 | E28: Please Enter Acreage | F28: =SUMIFS('Step 1 - Make Selections'!J$28:J$74,'Step 1 - Make Selections'!$C$28:$C$74,$K28)+SUMIFS('Step 1 - Make Selections'!J$77:J$90,'Step 1 - Make Selections'!$C$77:$C$90,$K28) -> 0 | G28: Please Enter Acreage | H28: =SUMIFS('Step 1 - Make Selections'!K$28:K$74,'Step 1 - Make Selections'!$C$28:$C$74,$K28)+SUMIFS('Step 1 - Make Selections'!K$77:K$90,'Step 1 - Make Selections'!$C$77:$C$90,$K28) -> 0 | I28: Please Enter Acreage | K28: 59012825
A29: Honor | B29: 1 x 36 lb | D29: =SUMIFS('Step 1 - Make Selections'!I$28:I$74,'Step 1 - Make Selections'!$C$28:$C$74,$K29)+SUMIFS('Step 1 - Make Selections'!I$77:I$90,'Step 1 - Make Selections'!$C$77:$C$90,$K29) -> 0 | E29: Please Enter Acreage | F29: =SUMIFS('Step 1 - Make Selections'!J$28:J$74,'Step 1 - Make Selections'!$C$28:$C$74,$K29)+SUMIFS('Step 1 - Make Selections'!J$77:J$90,'Step 1 - Make Selections'!$C$77:$C$90,$K29) -> 0 | G29: =IF(OR($C$18=0,$C$19=0),"Please Enter Acreage",IF(C29="Greens",F29/$C$19,IF(C29="Fairways",F29/$C$18,0))) -> Please Enter Acreage | H29: =SUMIFS('Step 1 - Make Selections'!K$28:K$74,'Step 1 - Make Selections'!$C$28:$C$74,$K29)+SUMIFS('Step 1 - Make Selections'!K$77:K$90,'Step 1 - Make Selections'!$C$77:$C$90,$K29) -> 0 | I29: Please Enter Acreage | K29: 59012885
B30: 6 x 3 lb | D30: =SUMIFS('Step 1 - Make Selections'!I$28:I$74,'Step 1 - Make Selections'!$C$28:$C$74,$K30)+SUMIFS('Step 1 - Make Selections'!I$77:I$90,'Step 1 - Make Selections'!$C$77:$C$90,$K30) -> 0 | E30: Please Enter Acreage | F30: =SUMIFS('Step 1 - Make Selections'!J$28:J$74,'Step 1 - Make Selections'!$C$28:$C$74,$K30)+SUMIFS('Step 1 - Make Selections'!J$77:J$90,'Step 1 - Make Selections'!$C$77:$C$90,$K30) -> 0 | G30: Please Enter Acreage | H30: =SUMIFS('Step 1 - Make Selections'!K$28:K$74,'Step 1 - Make Selections'!$C$28:$C$74,$K30)+SUMIFS('Step 1 - Make Selections'!K$77:K$90,'Step 1 - Make Selections'!$C$77:$C$90,$K30) -> 0 | I30: Please Enter Acreage | K30: 59012350
A31: Insignia SC | B31: 4 x 30.5 fl oz | D31: =SUMIFS('Step 1 - Make Selections'!I$28:I$74,'Step 1 - Make Selections'!$C$28:$C$74,$K31)+SUMIFS('Step 1 - Make Selections'!I$77:I$90,'Step 1 - Make Selections'!$C$77:$C$90,$K31) -> 0 | E31: Please Enter Acreage | F31: =SUMIFS('Step 1 - Make Selections'!J$28:J$74,'Step 1 - Make Selections'!$C$28:$C$74,$K31)+SUMIFS('Step 1 - Make Selections'!J$77:J$90,'Step 1 - Make Selections'!$C$77:$C$90,$K31) -> 0 | G31: =IF(OR($C$18=0,$C$19=0),"Please Enter Acreage",IF(C31="Greens",F31/$C$19,IF(C31="Fairways",F31/$C$18,0))) -> Please Enter Acreage | H31: =SUMIFS('Step 1 - Make Selections'!K$28:K$74,'Step 1 - Make Selections'!$C$28:$C$74,$K31)+SUMIFS('Step 1 - Make Selections'!K$77:K$90,'Step 1 - Make Selections'!$C$77:$C$90,$K31) -> 0 | I31: Please Enter Acreage | K31: 59014134
B32: 4 x 122 fl oz | D32: =SUMIFS('Step 1 - Make Selections'!I$28:I$74,'Step 1 - Make Selections'!$C$28:$C$74,$K32)+SUMIFS('Step 1 - Make Selections'!I$77:I$90,'Step 1 - Make Selections'!$C$77:$C$90,$K32) -> 0 | E32: Please Enter Acreage | F32: =SUMIFS('Step 1 - Make Selections'!J$28:J$74,'Step 1 - Make Selections'!$C$28:$C$74,$K32)+SUMIFS('Step 1 - Make Selections'!J$77:J$90,'Step 1 - Make Selections'!$C$77:$C$90,$K32) -> 0 | G32: Please Enter Acreage | H32: =SUMIFS('Step 1 - Make Selections'!K$28:K$74,'Step 1 - Make Selections'!$C$28:$C$74,$K32)+SUMIFS('Step 1 - Make Selections'!K$77:K$90,'Step 1 - Make Selections'!$C$77:$C$90,$K32) -> 0 | I32: Please Enter Acreage | K32: 59012450
B33: 2x 2.5 gal | D33: =SUMIFS('Step 1 - Make Selections'!I$28:I$74,'Step 1 - Make Selections'!$C$28:$C$74,$K33)+SUMIFS('Step 1 - Make Selections'!I$77:I$90,'Step 1 - Make Selections'!$C$77:$C$90,$K33) -> 0 | E33: Please Enter Acreage | F33: =SUMIFS('Step 1 - Make Selections'!J$28:J$74,'Step 1 - Make Selections'!$C$28:$C$74,$K33)+SUMIFS('Step 1 - Make Selections'!J$77:J$90,'Step 1 - Make Selections'!$C$77:$C$90,$K33) -> 0 | G33: Please Enter Acreage | H33: =SUMIFS('Step 1 - Make Selections'!K$28:K$74,'Step 1 - Make Selections'!$C$28:$C$74,$K33)+SUMIFS('Step 1 - Make Selections'!K$77:K$90,'Step 1 - Make Selections'!$C$77:$C$90,$K33) -> 0 | I33: Please Enter Acreage | K33: 59014135
A34: Trinity | B34: 2 x 2.5 gal | D34: =SUMIFS('Step 1 - Make Selections'!I$28:I$74,'Step 1 - Make Selections'!$C$28:$C$74,$K34)+SUMIFS('Step 1 - Make Selections'!I$77:I$90,'Step 1 - Make Selections'!$C$77:$C$90,$K34) -> 0 | E34: Please Enter Acreage | F34: =SUMIFS('Step 1 - Make Selections'!J$28:J$74,'Step 1 - Make Selections'!$C$28:$C$74,$K34)+SUMIFS('Step 1 - Make Selections'!J$77:J$90,'Step 1 - Make Selections'!$C$77:$C$90,$K34) -> 0 | G34: =IF(OR($C$18=0,$C$19=0),"Please Enter Acreage",IF(C34="Greens",F34/$C$19,IF(C34="Fairways",F34/$C$18,0))) -> Please Enter Acreage | H34: =SUMIFS('Step 1 - Make Selections'!K$28:K$74,'Step 1 - Make Selections'!$C$28:$C$74,$K34)+SUMIFS('Step 1 - Make Selections'!K$77:K$90,'Step 1 - Make Selections'!$C$77:$C$90,$K34) -> 0 | I34: Please Enter Acreage | K34: 59011038
A35: Lexicon | B35: 4 x 21 oz | D35: =SUMIFS('Step 1 - Make Selections'!I$28:I$74,'Step 1 - Make Selections'!$C$28:$C$74,$K35)+SUMIFS('Step 1 - Make Selections'!I$77:I$90,'Step 1 - Make Selections'!$C$77:$C$90,$K35) -> 0 | E35: Please Enter Acreage | F35: =SUMIFS('Step 1 - Make Selections'!J$28:J$74,'Step 1 - Make Selections'!$C$28:$C$74,$K35)+SUMIFS('Step 1 - Make Selections'!J$77:J$90,'Step 1 - Make Selections'!$C$77:$C$90,$K35) -> 0 | G35: Please Enter Acreage | H35: =SUMIFS('Step 1 - Make Selections'!K$28:K$74,'Step 1 - Make Selections'!$C$28:$C$74,$K35)+SUMIFS('Step 1 - Make Selections'!K$77:K$90,'Step 1 - Make Selections'!$C$77:$C$90,$K35) -> 0 | I35: Please Enter Acreage | K35: 59013840
A36: Pillar G Intrinsic | B36: 30 lb. | D36: =SUMIFS('Step 1 - Make Selections'!I$28:I$74,'Step 1 - Make Selections'!$C$28:$C$74,$K36)+SUMIFS('Step 1 - Make Selections'!I$77:I$90,'Step 1 - Make Selections'!$C$77:$C$90,$K36) -> 0 | E36: Please Enter Acreage | F36: =SUMIFS('Step 1 - Make Selections'!J$28:J$74,'Step 1 - Make Selections'!$C$28:$C$74,$K36)+SUMIFS('Step 1 - Make Selections'!J$77:J$90,'Step 1 - Make Selections'!$C$77:$C$90,$K36) -> 0 | G36: Please Enter Acreage | H36: =SUMIFS('Step 1 - Make Selections'!K$28:K$74,'Step 1 - Make Selections'!$C$28:$C$74,$K36)+SUMIFS('Step 1 - Make Selections'!K$77:K$90,'Step 1 - Make Selections'!$C$77:$C$90,$K36) -> 0 | I36: Please Enter Acreage | K36: 59012784
A39: BASF has developed this calculator using formulas that approximate the rebate amount under the 2018 Early Order Program. The calculator is being shared with you for information purposes only and for your private use in preparing your own calculations. While every effort has been made to ensure the accuracy and reliability of the information and formulas, no guarantee is given nor responsibility taken by BASF for the accuracy of the calculator or the applicability to your particular circumstances. BASF PROVIDES THIS CALCULATOR AND ANY RESULT THEREFROM AS IS WITH ALL FAULTS AND WITH NO WARRANTY WHATSOEVER, EITHER EXPRESS OR IMPLIED, INCLUDING ANY WARRANTIES OF MERCHANTABILITY AND FITNESS FOR PARTICULAR PURPOSE. YOU ASSUME ANY AND ALL RISKS IN USING THE CALCULATOR AND RELYING ON THE INFORMATION CONTAINED HEREIN. IN NO CIRCUMSTANCES SHALL BASF BE LIABLE FOR ANY DAMAGES WHATSOEVER, INCLUDING BUT NOT LIMITED TO LOSS OF PROFIT, LOSS OF BUSINESS, LOSS OF SAVINGS, OR CONSEQUENTIAL DAMAGES, EVEN IF BASF HAS BEEN NOTIFIED AS SUCH.

Sheet Step 3 - Review Order
A9: =NOW() -> 2017-09-26T09:18:23.380
A10: Order For | B10: Order Prepared By | D10: Rebate Summary
A11: <Enter Customer Name> | B11: <Enter Name> | D11: Total Purchase | F11: ='Step 1 - Make Selections'!G19 -> 0
A12: <Enter Business Name> | B12: <Enter Business Name> | D12: Rebate Level Attained | F12: ='Step 1 - Make Selections'!B21 -> 0
A13: <City, ST Zip Code> | B13: <City, ST Zip Code> | D13: Total Spend Rebate | F13: ='Step 1 - Make Selections'!G23 -> Not Achieved
A14: <Phone> | B14: <Phone> | D14: Intrinsic/Freehand Rebate | F14: ='Step 1 - Make Selections'!G24 -> Not Achieved
A15: <email address> | B15: <email address> | D15: Total EOP Rebate | F15: ='Step 1 - Make Selections'!G25 -> 0
A19: Your Order Detail
A21: Product / Cubes | B21: Package | C21: Article No. | D21: Price | E21: Quantity | F21: Total
A22: Multi-course Fairway Cube | B22: Cube | C22: 59014559 | D22: 32226 | E22: =VLOOKUP(C22,'Step 1 - Make Selections'!$C$28:$G$90,3,FALSE)+VLOOKUP(C22,'Step 1 - Make Selections'!$C$28:$G$90,5,FALSE) -> 0 | F22: =E22*D22 -> 0
A23: Dollar Spot Foundation Cube | B23: Cube | C23: 59014560 | D23: 13869 | E23: =VLOOKUP(C23,'Step 1 - Make Selections'!$C$28:$G$90,3,FALSE)+VLOOKUP(C23,'Step 1 - Make Selections'!$C$28:$G$90,5,FALSE) -> 0 | F23: =E23*D23 -> 0
A24: New Innovation Cube | B24: Cube | C24: 59014244 | D24: 7441 | E24: =VLOOKUP(C24,'Step 1 - Make Selections'!$C$28:$G$90,3,FALSE)+VLOOKUP(C24,'Step 1 - Make Selections'!$C$28:$G$90,5,FALSE) -> 0 | F24: 0
A25: Fairway Building Block Cube | B25: Cube | C25: 59014398 | D25: 6036 | E25: =VLOOKUP(C25,'Step 1 - Make Selections'!$C$28:$G$90,3,FALSE)+VLOOKUP(C25,'Step 1 - Make Selections'!$C$28:$G$90,5,FALSE) -> 0 | F25: 0
A26: More Resilience II Cube | B26: Cube | C26: 59014397 | D26: 30284 | E26: =VLOOKUP(C26,'Step 1 - Make Selections'!$C$28:$G$90,3,FALSE)+VLOOKUP(C26,'Step 1 - Make Selections'!$C$28:$G$90,5,FALSE) -> 0 | F26: 0
A27: Plant Health Cube | B27: Cube | C27: 59014232 | D27: 8727 | E27: =VLOOKUP(C27,'Step 1 - Make Selections'!$C$28:$G$90,3,FALSE)+VLOOKUP(C27,'Step 1 - Make Selections'!$C$28:$G$90,5,FALSE) -> 0 | F27: 0
A28: Greens Foundation Cube | B28: Cube | C28: 59014396 | D28: 5791 | E28: =VLOOKUP(C28,'Step 1 - Make Selections'!$C$28:$G$90,3,FALSE)+VLOOKUP(C28,'Step 1 - Make Selections'!$C$28:$G$90,5,FALSE) -> 0 | F28: 0
A29: Naturalized Area II Cube | B29: Cube | C29: 59014556 | D29: 4338 | E29: =VLOOKUP(C29,'Step 1 - Make Selections'!$C$28:$G$90,3,FALSE)+VLOOKUP(C29,'Step 1 - Make Selections'!$C$28:$G$90,5,FALSE) -> 0 | F29: =E29*D29 -> 0
A30: Emerald® Fungicide | B30: 10 x 0.49 lb | C30: 59021463 | D30: 1568 | E30: =VLOOKUP(C30,'Step 1 - Make Selections'!$C$59:$G$90,3,FALSE)+VLOOKUP(C30,'Step 1 - Make Selections'!$C$59:$G$90,5,FALSE) -> 0 | F30: 0
A31: Emerald® Fungicide | B31: 50 x 0.49 lb | C31: 59012825 | D31: 6835.5 | E31: =VLOOKUP(C31,'Step 1 - Make Selections'!$C$59:$G$90,3,FALSE)+VLOOKUP(C31,'Step 1 - Make Selections'!$C$59:$G$90,5,FALSE) -> 0 | F31: 0
A32: FreeHand® Herbicide | B32: 1 x 50 lb | C32: 59011296 | D32: 93.5 | E32: =VLOOKUP(C32,'Step 1 - Make Selections'!$C$59:$G$90,3,FALSE)+VLOOKUP(C32,'Step 1 - Make Selections'!$C$59:$G$90,5,FALSE) -> 0 | F32: 0
A33: Honor® Intrinsic™ brand Fungicide | B33: 6 x 3 lb | C33: 59012350 | D33: 2616.12 | E33: =VLOOKUP(C33,'Step 1 - Make Selections'!$C$59:$G$90,3,FALSE)+VLOOKUP(C33,'Step 1 - Make Selections'!$C$59:$G$90,5,FALSE) -> 0 | F33: 0
A34: Honor® Intrinsic™ brand Fungicide | B34: 1 x 36 lb | C34: 59012885 | D34: 3891.24 | E34: =VLOOKUP(C34,'Step 1 - Make Selections'!$C$59:$G$90,3,FALSE)+VLOOKUP(C34,'Step 1 - Make Selections'!$C$59:$G$90,5,FALSE) -> 0 | F34: 0
A35: Insignia® SC Intrinsic™ brand Fungicide | B35: 4 x 30.5 fl oz | C35: 59014134 | D35: 1700.68 | E35: =VLOOKUP(C35,'Step 1 - Make Selections'!$C$59:$G$90,3,FALSE)+VLOOKUP(C35,'Step 1 - Make Selections'!$C$59:$G$90,5,FALSE) -> 0 | F35: 0
A36: Insignia® SC Intrinsic™ brand Fungicide | B36: 4 x 122 fl oz | C36: 59012450 | D36: 6368.4 | E36: =VLOOKUP(C36,'Step 1 - Make Selections'!$C$59:$G$90,3,FALSE)+VLOOKUP(C36,'Step 1 - Make Selections'!$C$59:$G$90,5,FALSE) -> 0 | F36: 0
A37: Insignia® SC Intrinsic™ brand Fungicide | B37: 2x 2.5 gal | C37: 59014135 | D37: 5795 | E37: =VLOOKUP(C37,'Step 1 - Make Selections'!$C$59:$G$90,3,FALSE)+VLOOKUP(C37,'Step 1 - Make Selections'!$C$59:$G$90,5,FALSE) -> 0 | F37: 0
A38: Lexicon® Intrinsic™ Brand Fungicide | B38: 4x 21 oz | C38: 59013840 | D38: 1935.36 | E38: =VLOOKUP(C38,'Step 1 - Make Selections'!$C$59:$G$90,3,FALSE)+VLOOKUP(C38,'Step 1 - Make Selections'!$C$59:$G$90,5,FALSE) -> 0 | F38: 0
A39: Orkestra™ Intrinsic™ brand fungicide | B39: 4x 16 oz | C39: 59014379 | D39: 544 | E39: =VLOOKUP(C39,'Step 1 - Make Selections'!$C$59:$G$90,3,FALSE)+VLOOKUP(C39,'Step 1 - Make Selections'!$C$59:$G$90,5,FALSE) -> 0 | F39: 0
A40: Pendulum® AquaCap™ Herbicide | B40: 1 x 15 gal | C40: 59011279 | D40: 735.3 | E40: =VLOOKUP(C40,'Step 1 - Make Selections'!$C$59:$G$90,3,FALSE)+VLOOKUP(C40,'Step 1 - Make Selections'!$C$59:$G$90,5,FALSE) -> 0 | F40: 0
A41: Pendulum® AquaCap™ Bulk Herbicide | B41: 110 gal | C41: 59049202 | D41: 5392.2 | E41: =VLOOKUP(C41,'Step 1 - Make Selections'!$C$59:$G$90,3,FALSE)+VLOOKUP(C41,'Step 1 - Make Selections'!$C$59:$G$90,5,FALSE) -> 0 | F41: 0
A42: Pendulum® AquaCap™ Bulk Herbicide | B42: 220 gal | C42: 59049202 | D42: 10784.4 | E42: =VLOOKUP(C42,'Step 1 - Make Selections'!$C$59:$G$90,3,FALSE)+VLOOKUP(C42,'Step 1 - Make Selections'!$C$59:$G$90,5,FALSE) -> 0 | F42: 0
A43: Tower® Herbicide | B43: 2 x 2.5 gal | C43: 59014247 | D43: 1482.5 | E43: =VLOOKUP(C43,'Step 1 - Make Selections'!$C$59:$G$90,3,FALSE)+VLOOKUP(C43,'Step 1 - Make Selections'!$C$59:$G$90,5,FALSE) -> 0 | F43: 0
A44: Xzemplar™ Fungicide | B44: 2x 114 oz | C44: 59013833 | D44: 3565.92 | E44: =VLOOKUP(C44,'Step 1 - Make Selections'!$C$59:$G$90,3,FALSE)+VLOOKUP(C44,'Step 1 - Make Selections'!$C$59:$G$90,5,FALSE) -> 0 | F44: 0
A45: Xzemplar™Fungicide | B45: 4 x 11.4 oz | C45: 59014120 | D45: 820.8 | E45: =VLOOKUP(C45,'Step 1 - Make Selections'!$C$59:$G$90,3,FALSE)+VLOOKUP(C45,'Step 1 - Make Selections'!$C$59:$G$90,5,FALSE) -> 0 | F45: 0
A46: Admiral Lake Colorant | B46: 4 x 1 gal. | C46: 59013341 | D46: See Agent for Price | E46: =VLOOKUP(C46,'Step 1 - Make Selections'!$C$59:$G$90,3,FALSE)+VLOOKUP(C46,'Step 1 - Make Selections'!$C$59:$G$90,5,FALSE) -> 0 | F46: =0 -> 0
A47: Black Onyx Lake Colorant | B47: 4 x 1 gal. | C47: 59013424 | D47: See Agent for Price | E47: =VLOOKUP(C47,'Step 1 - Make Selections'!$C$59:$G$90,3,FALSE)+VLOOKUP(C47,'Step 1 - Make Selections'!$C$59:$G$90,5,FALSE) -> 0 | F47: =0 -> 0
A48: Drive XLR8 herbicide | B48: 4 x 0.5 lb. | C48: 59011404 | D48: See Agent for Price | E48: =VLOOKUP(C48,'Step 1 - Make Selections'!$C$59:$G$90,3,FALSE)+VLOOKUP(C48,'Step 1 - Make Selections'!$C$59:$G$90,5,FALSE) -> 0 | F48: =0 -> 0
A49: Green Lawnger turf colorant | B49: 2 x 2.5 gal. | C49: 59013430 | D49: See Agent for Price | E49: =VLOOKUP(C49,'Step 1 - Make Selections'!$C$59:$G$90,3,FALSE)+VLOOKUP(C49,'Step 1 - Make Selections'!$C$59:$G$90,5,FALSE) -> 0 | F49: =0 -> 0
A50: Pendulum Aquacap herbicide | B50: 2 x 2.5 gal. | C50: 59049276 | D50: See Agent for Price | E50: =VLOOKUP(C50,'Step 1 - Make Selections'!$C$59:$G$90,3,FALSE)+VLOOKUP(C50,'Step 1 - Make Selections'!$C$59:$G$90,5,FALSE) -> 0 | F50: =0 -> 0
A51: Pillar G Intrinsic brand fungicide | B51: 30 lb. | C51: 59012784 | D51: See Agent for Price | E51: =VLOOKUP(C51,'Step 1 - Make Selections'!$C$59:$G$90,3,FALSE)+VLOOKUP(C51,'Step 1 - Make Selections'!$C$59:$G$90,5,FALSE) -> 0 | F51: =0 -> 0
A52: Pylex Herbicide | B52: 4x 8 fl. Oz. | C52: 59013624 | D52: See Agent for Price | E52: =VLOOKUP(C52,'Step 1 - Make Selections'!$C$59:$G$90,3,FALSE)+VLOOKUP(C52,'Step 1 - Make Selections'!$C$59:$G$90,5,FALSE) -> 0 | F52: =0 -> 0
A53: Segment II Herbicide-NEW | B53: 2x2.5 gallon | C53: 59011288 | D53: See Agent for Price | E53: =VLOOKUP(C53,'Step 1 - Make Selections'!$C$59:$G$90,3,FALSE)+VLOOKUP(C53,'Step 1 - Make Selections'!$C$59:$G$90,5,FALSE) -> 0 | F53: =0 -> 0
A54: Siesta Insecticide Fire Ant bait | B54: 15 lb. | C54: 59011057 | D54: See Agent for Price | E54: =VLOOKUP(C54,'Step 1 - Make Selections'!$C$59:$G$90,3,FALSE)+VLOOKUP(C54,'Step 1 - Make Selections'!$C$59:$G$90,5,FALSE) -> 0 | F54: =0 -> 0
A55: Transition HC dark turf colorant | B55: 4 x 1 gal. | C55: 59013410 | D55: See Agent for Price | E55: =VLOOKUP(C55,'Step 1 - Make Selections'!$C$59:$G$90,3,FALSE)+VLOOKUP(C55,'Step 1 - Make Selections'!$C$59:$G$90,5,FALSE) -> 0 | F55: =0 -> 0
A56: Trinity fungicide | B56: 2x 2.5 gal. | C56: 59011038 | D56: See Agent for Price | E56: =VLOOKUP(C56,'Step 1 - Make Selections'!$C$59:$G$90,3,FALSE)+VLOOKUP(C56,'Step 1 - Make Selections'!$C$59:$G$90,5,FALSE) -> 0 | F56: =0 -> 0
A57: Turf Mark spray indicator-Blue | B57: 2 x 2.5 gal. | C57: 59013417 | D57: See Agent for Price | E57: =VLOOKUP(C57,'Step 1 - Make Selections'!$C$59:$G$90,3,FALSE)+VLOOKUP(C57,'Step 1 - Make Selections'!$C$59:$G$90,5,FALSE) -> 0 | F57: =0 -> 0
A58: Turf Mark spray indicator-Green | B58: 2 x 2.5 gal. | C58: 59013486 | D58: See Agent for Price | E58: =VLOOKUP(C58,'Step 1 - Make Selections'!$C$59:$G$90,3,FALSE)+VLOOKUP(C58,'Step 1 - Make Selections'!$C$59:$G$90,5,FALSE) -> 0 | F58: =0 -> 0
A59: Vision Pro HD turf colorant | B59: 4x1 gal. | C59: 59013342 | D59: See Agent for Price | E59: =VLOOKUP(C59,'Step 1 - Make Selections'!$C$59:$G$90,3,FALSE)+VLOOKUP(C59,'Step 1 - Make Selections'!$C$59:$G$90,5,FALSE) -> 0 | F59: =0 -> 0
A61: BASF has developed this calculator using formulas that approximate the rebate amount under the 2018 Early Order Program. The calculator is being shared with you for information purposes only and for your private use in preparing your own calculations. While every effort has been made to ensure the accuracy and reliability of the information and formulas, no guarantee is given nor responsibility taken by BASF for the accuracy of the calculator or the applicability to your particular circumstances. BASF PROVIDES THIS CALCULATOR AND ANY RESULT THEREFROM AS IS WITH ALL FAULTS AND WITH NO WARRANTY WHATSOEVER, EITHER EXPRESS OR IMPLIED, INCLUDING ANY WARRANTIES OF MERCHANTABILITY AND FITNESS FOR PARTICULAR PURPOSE. YOU ASSUME ANY AND ALL RISKS IN USING THE CALCULATOR AND RELYING ON THE INFORMATION CONTAINED HEREIN. IN NO CIRCUMSTANCES SHALL BASF BE LIABLE FOR ANY DAMAGES WHATSOEVER, INCLUDING BUT NOT LIMITED TO LOSS OF PROFIT, LOSS OF BUSINESS, LOSS OF SAVINGS, OR CONSEQUENTIAL DAMAGES, EVEN IF BASF HAS BEEN NOTIFIED AS SUCH.

Sheet Range Reference (hidden)
C1: Oct | D1: Nov-Dec | J1: Article Description | K1: Pkg Size | L1: Art # | M1: Cases | N1: Cov Vol | O1: Rebate | P1: Sales | Q1: Rebate $ | R1: Rebate Combined $
A2: Low | B2: High | C2: Discount | D2: Discount | E2: Oct Applied | F2: Nov-Dec Applied | G2: Rebate Applied | J2: =VLOOKUP($L2,'Article Reference'!$A$2:$C$45,2,FALSE) -> FreeHand® Herbicide | K2: =VLOOKUP($L2,'Article Reference'!$A$2:$C$45,3,FALSE) -> 1 x 50 lb | L2: 59011296 | M2: =SUM('Step 1 - Make Selections'!E61+'Step 1 - Make Selections'!G61) -> 0 | N2: =M2*50 -> 0 | O2: =IF(N2>=16000,0.1,0) -> 0 | P2: =SUM('Step 1 - Make Selections'!F61+'Step 1 - Make Selections'!H61) -> 0 | Q2: =P2*O2 -> 0 | R2: =Q2 -> 0
A3: 2000 | B3: 6999.99 | C3: 0.04 | D3: 0.03 | E3: =IF(AND(('Step 1 - Make Selections'!$F$75+'Step 1 - Make Selections'!$F$91)>=2000,'Step 1 - Make Selections'!$G$19>=$A3,'Step 1 - Make Selections'!$G$19<=$B3),C3) -> FALSE | F3: =IF(AND(('Step 1 - Make Selections'!$F$75+'Step 1 - Make Selections'!$F$91)<2000,'Step 1 - Make Selections'!$G$19>=$A3,'Step 1 - Make Selections'!$G$19<=$B3),D3) -> FALSE | G3: =SUM(E3:F3) -> 0 | J3: Honor® Intrinsic™ brand Fungicide | K3: 6 x 3 lb | L3: 59012350 | M3: =SUM('Step 1 - Make Selections'!E62+'Step 1 - Make Selections'!G62) -> 0 | N3: =M3*18 -> 0 | O3: =IF((N3+N4)>=108,0.1,0) -> 0 | P3: =SUM('Step 1 - Make Selections'!F62+'Step 1 - Make Selections'!H62) -> 0 | Q3: =(P3+P4)*O3 -> 0 | R3: =Q3 -> 0
A4: 7000 | B4: 19999.99 | C4: 0.07 | D4: 0.05 | E4: =IF(AND(('Step 1 - Make Selections'!$F$75+'Step 1 - Make Selections'!$F$91)>=2000,'Step 1 - Make Selections'!$G$19>=$A4,'Step 1 - Make Selections'!$G$19<=$B4),C4) -> FALSE | F4: =IF(AND(('Step 1 - Make Selections'!$F$75+'Step 1 - Make Selections'!$F$91)<2000,'Step 1 - Make Selections'!$G$19>=$A4,'Step 1 - Make Selections'!$G$19<=$B4),D4) -> FALSE | G4: =SUM(E4:F4) -> 0 | J4: Honor® Intrinsic™ brand Fungicide | K4: 1 x 36 lb | L4: 59012885 | M4: =SUM('Step 1 - Make Selections'!E63+'Step 1 - Make Selections'!G63) -> 0 | N4: =36*M4 -> 0 | P4: =SUM('Step 1 - Make Selections'!F63+'Step 1 - Make Selections'!H63) -> 0
A5: 20000 | B5: 10000000 | C5: 0.1 | D5: 0.07 | E5: =IF(AND(('Step 1 - Make Selections'!$F$75+'Step 1 - Make Selections'!$F$91)>=2000,'Step 1 - Make Selections'!$G$19>=$A5,'Step 1 - Make Selections'!$G$19<=$B5),C5) -> FALSE | F5: =IF(AND(('Step 1 - Make Selections'!$F$75+'Step 1 - Make Selections'!$F$91)<2000,'Step 1 - Make Selections'!$G$19>=$A5,'Step 1 - Make Selections'!$G$19<=$B5),D5) -> FALSE | G5: =SUM(E5:F5) -> 0 | J5: Insignia® SC Intrinsic™ brand Fungicide | K5: 4 x 30.5 fl oz | L5: 59014134 | M5: =SUM('Step 1 - Make Selections'!E64+'Step 1 - Make Selections'!G64) -> 0 | N5: =(122*0.0078125)*M5 -> 0 | O5: =IF((N5+N6+N7)>=10,0.1,0) -> 0 | P5: =SUM('Step 1 - Make Selections'!F64+'Step 1 - Make Selections'!H64) -> 0 | Q5: =(P5+P6+P7)*O5 -> 0 | R5: =Q5 -> 0
C6: DISCOUNT | E6: =SUM(E3:E5) -> 0 | F6: =SUM(F3:F5) -> 0 | G6: =SUM(E6:F6) -> 0 | J6: Insignia® SC Intrinsic™ brand Fungicide | K6: 4 x 122 fl oz | L6: 59012450 | M6: =SUM('Step 1 - Make Selections'!E65+'Step 1 - Make Selections'!G65) -> 0 | N6: =(488*0.0078125)*M6 -> 0 | P6: =SUM('Step 1 - Make Selections'!F65+'Step 1 - Make Selections'!H65) -> 0
J7: Insignia® SC Intrinsic™ brand Fungicide | K7: 2x 2.5 gal | L7: 59012382 | M7: =SUM('Step 1 - Make Selections'!E66+'Step 1 - Make Selections'!G66) -> 0 | N7: =5*M7 -> 0 | P7: =SUM('Step 1 - Make Selections'!F66+'Step 1 - Make Selections'!H66) -> 0
J8: TOTAL | R8: =SUM(R5+R3+R2) -> 0

Sheet Article Reference (hidden)
A1: ART | B1: BRAND | C1: PACKAGE
A2: 59021463 | B2: Emerald® Fungicide | C2: 10 x 0.49 lb
A3: 59012825 | B3: Emerald® Fungicide | C3: 50 x 0.49 lb
A4: 59011296 | B4: FreeHand® Herbicide | C4: 1 x 50 lb
A5: 59012350 | B5: Honor® Intrinsic™ brand Fungicide | C5: 6 x 3 lb
A6: 59012885 | B6: Honor® Intrinsic™ brand Fungicide | C6: 1 x 36 lb
A7: 59014134 | B7: Insignia® SC Intrinsic™ brand Fungicide | C7: 4 x 30.5 fl oz
A8: 59012450 | B8: Insignia® SC Intrinsic™ brand Fungicide | C8: 4 x 122 fl oz
A9: 59014135 | B9: Insignia® SC Intrinsic™ brand Fungicide | C9: 2x 2.5 gal
A10: 59013840 | B10: Lexicon® Intrinsic™ Brand Fungicide | C10: 4x 21 oz
A11: 59014379 | B11: Orkestra™ Intrinsic™ brand fungicide | C11: 4x 16 oz
A12: 59012349 | B12: Pageant® Intrinsic™ brand Fungicide | C12: 4 x 1 lb
A13: 59012429 | B13: Pageant® Intrinsic™ brand Fungicide | C13: 4 x 12 lb
A14: 59011279 | B14: Pendulum® AquaCap™ Herbicide | C14: 1 x 15 gal
A15: 59049202 | B15: Pendulum® AquaCap™ Bulk Herbicide | C15: 110 gal
A16: 59049202 | B16: Pendulum® AquaCap™ Bulk Herbicide | C16: 220 gal
A17: 59014176 | B17: Pylon® Insecticide | C17: 2 x 0.5 gal
A18: 59013978 | B18: Sultan™ Miticide | C18: 4x 0.125 gal
A19: 59014247 | B19: Tower® Herbicide | C19: 2 x 2.5 gal
A20: 59013833 | B20: Xzemplar™ Fungicide | C20: 2x 114 oz
A21: 59014120 | B21: Xzemplar™Fungicide | C21: 4 x 11.4 oz
B22: BASF 2016 EOP Qualifying Non-Agency Products
A23: Article Number | B23: Qaulifying Non-Agency Products | C23: Package
A24: 59013341 | B24: Admiral Lake Colorant | C24: 4 x 1 gal.
A25: 59013424 | B25: Black Onyx Lake Colorant | C25: 4 x 1 gal.
A26: 59013627 | B26: Curalan Fungicide | C26: 12 x 2.75 lb.
A27: 59011404 | B27: Drive XLR8 herbicide | C27: 4 x 0.5 lb.
A28: 59012851 | B28: Empress Intrinsic brand fungicide | C28: 24 fl. Oz.
A29: 59013430 | B29: Green Lawnger turf colorant | C29: 2 x 2.5 gal.
A30: 59012736 | B30: Orvego fungicide | C30: 28 fl. Oz.
A31: 59014427 | B31: Segment II Herbicide | C31: 2x2.5 gallon
A32: 59019276 | B32: Pendulum Aquacap herbicide | C32: 2 x 2.5 gal.
A33: 59012784 | B33: Pillar G Intrinsic brand fungicide | C33: 30 lb.
A34: 59013624 | B34: Pylex Herbicide | C34: 8 fl. Oz.
A35: 59011057 | B35: Siesta Insecticide Fire Ant bait | C35: 15 lb.
B36: Stature SC Fungicide | C36: 6 x 25 oz.
A37: 59011637 | B37: Tower Herbicide-New Size! | C37: 2 x 2.5 gal.
A38: 59013410 | B38: Transition HC dark turf colorant | C38: 4 x 1 gal.
A39: 59011038 | B39: Trinity fungicide | C39: 2.5 gal.
A40: 59013486 | B40: Turf Mark spray indicator-Blue | C40: 2 x 2.5 gal.
B41: Turf Mark spray indicator-Green | C41: 2 x 2.5 gal.
A42: 59013342 | B42: Vision Pro HD turf colorant | C42: 4x1 gal.
A43: 59011401 | B43: Trinity Fungicide | C43: 4 x .5 gal
A44: 59011288 | B44: Stature Fungicide | C44: 6 x 25 oz
A45: 59014112 | B45: Sultan Miticide | C45: 4 X 1 PT
A46: 59014240 | B46: Complete Cube | C46: Cube
A47: 59014253 | B47: Deep Freeze Cube | C47: Cube
A48: 59014237 | B48: Defend Your Fairway Cube | C48: Cube
A49: 59014251 | B49: Honor America Cube | C49: Cube
A50: 59014244 | B50: New Innovation Cube | C50: Cube
A51: 59014249 | B51: Mini Your Cube | C51: Cube
A52: 59014252 | B52: More Resliience Cube | C52: Cube
A53: 59014232 | B53: Plant Health Cube | C53: Cube
A54: 59014245 | B54: Power Within Cube | C54: Cube
A55: 59014246 | B55: Southern Weed Surrounds | C55: Cube
A56: 59014231 | B56: Greenhouse & Nursery Foundation Cube | C56: Cube

Sheet Coverage Reference (hidden)
A1: Calculator Acreage
A2: Acre Coverage
A3: Product Name | B3: Article # | C3: Package Size | D3: Price/Case | E3: Low Rate | F3: Mid Rate | G3: High rate
A4: Xzemplar | B4: 59013833 | C4: 2 x 114 oz | E4: 32.8 | F4: 24.95 | G4: 20
A5: Xzemplar | B5: 59014120 | C5: 4 x 11.4 oz | E5: 6.6 | F5: 5 | G5: 4
A6: Emerald | B6: 59021463 | C6: 10 x .49 lb. | E6: 13.9 | F6: 12 | G6: 10
A7: Emerald | B7: 59012825 | C7: 50 x .49 lb. | E7: 69.3 | F7: 60 | G7: 50
A8: Curalan | B8: 59013627 | C8: 12 x 2.75 lb. | E8: 12 | F8: 12 | G8: 12
A9: Trinity | B9: 59011038 | C9: 2 x 2.5 gal | E9: 29.4 | F9: 18.3 | G9: 7.3
A10: Lexicon | B10: 59013840 | C10: 4 x 21 oz | E10: 5.68 | F10: 4.84 | G10: 4
A11: Honor | B11: 59012885 | C11: 1 x 36 lb | E11: 24 | F11: 18 | G11: 12
A12: Honor | B12: 59012350 | C12: 6 x 3 lb | E12: 12 | F12: 9 | G12: 6
A13: Insignia SC | B13: 59014135 | C13: 2 x 2.5 gal | E13: 36.8 | F13: 28.9 | G13: 21
A14: Insignia SC | B14: 59014134 | C14: 4 x 30.5 oz | E14: 7 | F14: 5.5 | G14: 4
A15: Insignia SC | B15: 59012450 | C15: 4 x 122 oz | E15: 28 | F15: 22 | G15: 16
A16: Pillar G | B16: 59012784 | C16: 30 lbs | E16: 0.22 | F16: 0.22 | G16: 0.22

Sheet Cube Reference (hidden)
A1: CUBE ART# | B1: CUBE NAME | C1: PRODUCT NAME | D1: PROD ART# | E1: CONCAT | F1: PROD VOL | G1: CASE SIZE | H1: ACRES TREATED | I1: 2016 EOP PRICE | J1: TOTAL BY PRODUCT | K1: Low Rate Acres | L1: High Rate Acres
A2: 59014401 | B2: Defent Your Fairways II Cube | C2: Xzemplar | D2: 59013833 | E2: =A2&D2 -> 5901440159013833 | F2: 5 | G2: 2 x 114 oz | H2: 100 | I2: 3428.76 | J2: 17143.8 | K2: =VLOOKUP($D2,'Coverage Reference'!$B$4:$G$15,4,FALSE)*F2 -> 164 | L2: =VLOOKUP($D2,'Coverage Reference'!$B$4:$G$15,5,FALSE)*F2 -> 124.75
A3: 59014401 | B3: Defent Your Fairways II Cube | C3: Emerald | D3: 59021463 | E3: =A3&D3 -> 5901440159021463 | F3: 6 | G3: 10 x .49 lbs. | H3: 60 | I3: 1524.29 | J3: 9145.74 | K3: =VLOOKUP($D3,'Coverage Reference'!$B$4:$G$15,4,FALSE)*F3 -> 83.4 | L3: =VLOOKUP($D3,'Coverage Reference'!$B$4:$G$15,5,FALSE)*F3 -> 72
A4: 59014401 | B4: Defent Your Fairways II Cube | C4: Trinity | D4: 59011038 | E4: 5901440159011038 | F4: 2 | G4: 2x2.5 gal | H4: 30 | I4: 963.89 | J4: 1927.78 | K4: =VLOOKUP($D4,'Coverage Reference'!$B$4:$G$15,4,FALSE)*F4 -> 58.8 | L4: =VLOOKUP($D4,'Coverage Reference'!$B$4:$G$15,5,FALSE)*F4 -> 36.6
A5: 59014399 | B5: Honor Fairway Cube | C5: Honor | D5: 59012885 | E5: 5901439959012885 | F5: 4 | G5: 1x 36 lbs | H5: 48 | I5: 3780 | J5: 15120 | K5: =VLOOKUP($D5,'Coverage Reference'!$B$4:$G$15,4,FALSE)*F5 -> 96 | L5: =VLOOKUP($D5,'Coverage Reference'!$B$4:$G$15,5,FALSE)*F5 -> 72
A6: 59014399 | B6: Honor Fairway Cube | C6: Emerald | D6: 59012825 | E6: 5901439959012825 | F6: 1 | G6: 50 x .49 lb. | H6: 50 | I6: 6636.81 | J6: 6636.81 | K6: =VLOOKUP($D6,'Coverage Reference'!$B$4:$G$15,4,FALSE)*F6 -> 69.3 | L6: =VLOOKUP($D6,'Coverage Reference'!$B$4:$G$15,5,FALSE)*F6 -> 60
A7: 59014244 | B7: =VLOOKUP(A7,'Article Reference'!$A$2:$C$56,2,FALSE) -> New Innovation Cube | C7: Lexicon | D7: 59013840 | E7: 5901424459013840 | F7: 3 | G7: 4x 21 oz | H7: 12 | I7: 1879.08 | J7: 5637.24 | K7: =VLOOKUP($D7,'Coverage Reference'!$B$4:$G$15,4,FALSE)*F7 -> 17.04 | L7: =VLOOKUP($D7,'Coverage Reference'!$B$4:$G$15,5,FALSE)*F7 -> 14.52
A8: 59014244 | B8: =VLOOKUP(A8,'Article Reference'!$A$2:$C$56,2,FALSE) -> New Innovation Cube | C8: Xzemplar | D8: 59014120 | E8: 5901424459014120 | F8: 3 | G8: 4 x 11.4 oz | H8: 12 | I8: 788.66 | J8: 2365.98 | K8: =VLOOKUP($D8,'Coverage Reference'!$B$4:$G$15,4,FALSE)*F8 -> 19.8 | L8: =VLOOKUP($D8,'Coverage Reference'!$B$4:$G$15,5,FALSE)*F8 -> 15
A9: 59014396 | B9: Greens Foundation Cube | C9: Lexicon | D9: 59013840 | E9: 5901439659013840 | F9: 1 | G9: 4x 21 oz | H9: 4 | I9: 1879.08 | J9: 1879.08 | K9: =VLOOKUP($D9,'Coverage Reference'!$B$4:$G$15,4,FALSE)*F9 -> 5.68 | L9: =VLOOKUP($D9,'Coverage Reference'!$B$4:$G$15,5,FALSE)*F9 -> 4.84
A10: 59014396 | B10: Greens Foundation Cube | C10: Insignia SC | D10: 59014134 | E10: 5901439659014134 | F10: 2 | G10: 4 x30.5 oz | H10: 8 | I10: 1651.88 | J10: 3303.76 | K10: =VLOOKUP($D10,'Coverage Reference'!$B$4:$G$15,4,FALSE)*F10 -> 14 | L10: =VLOOKUP($D10,'Coverage Reference'!$B$4:$G$15,5,FALSE)*F10 -> 11
A11: 59014396 | B11: Greens Foundation Cube | C11: Trinity | D11: 59011038 | E11: 5901439659011038 | F11: 1 | G11: 2x 2.5 gal | H11: 15 | I11: 963.89 | J11: 963.89 | K11: =VLOOKUP($D11,'Coverage Reference'!$B$4:$G$15,4,FALSE)*F11 -> 29.4 | L11: =VLOOKUP($D11,'Coverage Reference'!$B$4:$G$15,5,FALSE)*F11 -> 18.3
A12: 59014397 | B12: More Resilience II Cube | C12: Lexicon | D12: 59013840 | E12: 5901439759013840 | F12: 3 | G12: 4x 21 oz | H12: 12 | I12: 3052.92 | J12: 1879.08 | K12: 5637.24 | L12: =VLOOKUP($D12,'Coverage Reference'!$B$4:$G$15,5,FALSE)*F12 -> 14.52
A13: 59014397 | B13: More Resilience II Cube | C13: Xzemplar | D13: 59013833 | E13: 5901439759013833 | F13: 2 | G13: 2 x114 oz | H13: 40 | I13: 6247.5 | J13: 3428.76 | K13: 6857.52 | L13: =VLOOKUP($D13,'Coverage Reference'!$B$4:$G$15,5,FALSE)*F13 -> 49.9
A14: 59014397 | B14: More Resilience II Cube | C14: Emerald | D14: 59012825 | E14: 5901439759012825 | F14: 1 | G14: 50 x .49 lb. | H14: 50 | I14: 1100.55 | J14: 6636.81 | K14: 6636.81 | L14: =VLOOKUP($D14,'Coverage Reference'!$B$4:$G$15,5,FALSE)*F14 -> 60
A15: 59014397 | B15: More Resilience II Cube | C15: Trinity | D15: 59011038 | E15: 5901439759011038 | F15: 2 | G15: 2x 2.5 gal | H15: 30 | I15: 11340 | J15: 963.89 | K15: 1927.78 | L15: =VLOOKUP($D15,'Coverage Reference'!$B$4:$G$15,5,FALSE)*F15 -> 36.6
A16: 59014397 | B16: More Resilience II Cube | C16: Honor | D16: 59012885 | E16: 5901439759012885 | F16: 3 | G16: 36 lbs | H16: 36 | I16: 1689.24 | J16: 3780 | K16: 11340 | L16: =VLOOKUP($D16,'Coverage Reference'!$B$4:$G$15,5,FALSE)*F16 -> 54
A17: 59014232 | B17: =VLOOKUP(A17,'Article Reference'!$A$2:$C$56,2,FALSE) -> Plant Health Cube | C17: Lexicon | D17: 59013840 | E17: 5901423259013840 | F17: 3 | G17: 4x 21 oz | H17: 12 | I17: 1879.08 | J17: 5637.24 | K17: =VLOOKUP($D17,'Coverage Reference'!$B$4:$G$15,4,FALSE)*F17 -> 17.04 | L17: =VLOOKUP($D17,'Coverage Reference'!$B$4:$G$15,5,FALSE)*F17 -> 14.52
A18: 59014232 | B18: =VLOOKUP(A18,'Article Reference'!$A$2:$C$56,2,FALSE) -> Plant Health Cube | C18: Honor | D18: 59012885 | E18: 5901423259012885 | F18: 1 | G18: 36 lbs | H18: 12 | I18: 3780 | J18: 3780 | K18: =VLOOKUP($D18,'Coverage Reference'!$B$4:$G$15,4,FALSE)*F18 -> 24 | L18: =VLOOKUP($D18,'Coverage Reference'!$B$4:$G$15,5,FALSE)*F18 -> 18
A19: 59014398 | B19: Fairway Building Block Cube | C19: Xzemplar | D19: 59013833 | E19: 5901439859013833 | F19: 1 | G19: 2 x114 oz | H19: 20 | I19: 3428.76 | J19: 3428.76 | K19: =VLOOKUP($D19,'Coverage Reference'!$B$4:$G$15,4,FALSE)*F19 -> 32.8 | L19: =VLOOKUP($D19,'Coverage Reference'!$B$4:$G$15,5,FALSE)*F19 -> 24.95
A20: 59014398 | B20: Fairway Building Block Cube | C20: Emerald | D20: 59021463 | E20: 5901439859021463 | F20: 2 | G20: 10 x .49 lbs. | H20: 20 | I20: 1524.29 | J20: 3048.58 | K20: =VLOOKUP($D20,'Coverage Reference'!$B$4:$G$15,4,FALSE)*F20 -> 27.8 | L20: =VLOOKUP($D20,'Coverage Reference'!$B$4:$G$15,5,FALSE)*F20 -> 24
